{"text_format":"1","workbook":"xlsx","n_sheets":9,"sheets":["AER Sheet Heading","AER CF","AER NRs","AER lookups","AER ETL","Business & other details","7.6 Indicative bill","OLD","Graph"],"not_rendered":{"charts":2,"images":1,"macros":1,"external_links":1,"defined_names":347,"comments":1,"pivot_tables":0},"unopened":[],"bounds":{"document_bytes":16777216,"sheet_cells":100000,"rows_first":2000,"rows_last":500,"rows_between":2000,"halvings":0,"cell_chars":16384,"cell_head_chars":4096},"cells_cut":0,"cells_raw":0,"read":"whole","date_system":"1900"}

{"sheet":"AER Sheet Heading","index":0,"n_rows":44,"n_cols":9,"rows_kept":44,"cut":false,"hidden":true,"merged":[[41,2,41,8],[42,2,42,8],[10,2,10,8],[11,2,11,8]]}
[null,{"$f":"INDEX(dms_Worksheet_List,MATCH(dms_Model,dms_Model_List))","v":"REGULATORY REPORTING STATEMENT"}]
[null,{"$f":"INDEX(dms_TradingNameFull_List,MATCH(dms_TradingName,dms_TradingName_List))","v":"Queensland Electricity Transmission Corporation Limited trading as Powerlink Queensland"}]
[null,{"$f":"dms_Header_Span","v":"2020-21 - 2026-27"}]
[null,"XX"]
[]
[]
[]
[]
[]
[]
[null,null,"EXPENDITURE"]
[null,null,{"$f":"CONCATENATE(\"Forecast ($0's, real \",dms_DollarReal,\")\")","v":"Forecast ($0's, real June 2022)"}]
[null,null,{"$f":"dms_y1","v":"2020-21"},{"$f":"dms_y2","v":"2021-22"},{"$f":"dms_y3","v":"2022-23"},{"$f":"dms_y4","v":"2023-24"},{"$f":"dms_y5","v":"2024-25"},{"$f":"dms_y6","v":"2025-26"},{"$f":"dms_y7","v":"2026-27"}]
[]
[]
[]
[]
[]
[]
[]
[]
[]
[]
[]
[]
[]
[]
[]
[]
[]
[]
[]
[]
[]
[]
[]
[]
[]
[]
[]
[]
[null,null,"VOLUMES"]
[null,null,"0's"]
[null,null,{"$f":"dms_y1","v":"2020-21"},{"$f":"dms_y2","v":"2021-22"},{"$f":"dms_y3","v":"2022-23"},{"$f":"dms_y4","v":"2023-24"},{"$f":"dms_y5","v":"2024-25"},{"$f":"dms_y6","v":"2025-26"},{"$f":"dms_y7","v":"2026-27"}]

{"sheet":"AER CF","index":1,"n_rows":75,"n_cols":25,"rows_kept":75,"cut":false,"hidden":true,"merged":[[3,1,3,22],[38,38,38,59],[39,38,39,59],[40,38,40,59],[38,69,38,90],[39,69,39,90],[40,69,40,90]]}
[null,"AER CONDITIONAL FORMATTING"]
[]
[null,"CELLS FLAGED \"Y\" and greyed out will be greyed out in the worksheets."]
[null,"CONDITIONAL FORMATTING MAP"]
[null,null,null,null,null,"=INDEX(dms_CF_3.6.1, MATCH(dms_TradingName,dms_CF_TradingName))=\"Y\"","=INDEX(dms_CF_3.6.5, MATCH(dms_TradingName,dms_CF_TradingName))=\"Y\"","=INDEX(dms_CF_3.6.6.1, MATCH(dms_TradingName,dms_CF_TradingName))=\"Y\"","=INDEX(dms_CF_3.6.6.2, MATCH(dms_TradingName,dms_CF_TradingName))=\"Y\"","=INDEX(dms_CF_3.6.6.3, MATCH(dms_TradingName,dms_CF_TradingName))=\"Y\"","=INDEX(dms_CF_3.6.7.1, MATCH(dms_TradingName,dms_CF_TradingName))=\"Y\"","=INDEX(dms_CF_3.6.7.2, MATCH(dms_TradingName,dms_CF_TradingName))=\"Y\"","=INDEX(dms_CF_3.6.7.3, MATCH(dms_TradingName,dms_CF_TradingName))=\"Y\"","=INDEX(dms_CF_3.6.7.4, MATCH(dms_TradingName,dms_CF_TradingName))=\"Y\"","=INDEX(dms_CF_3.6.8, MATCH(dms_TradingName,dms_CF_TradingName))=\"Y\"","=INDEX(dms_CF_4.1, MATCH(dms_TradingName,dms_CF_TradingName))=\"Y\"","=INDEX(dms_CF_6.8, MATCH(dms_TradingName,dms_CF_TradingName))=\"Y\"","=INDEX(dms_CF_7.12, MATCH(dms_TradingName,dms_CF_TradingName))=\"Y\"","=INDEX(dms_CF_8.1_A, MATCH(dms_TradingName,dms_CF_TradingName))=\"Y\"","=INDEX(dms_CF_8.1_B, MATCH(dms_TradingName,dms_CF_TradingName))=\"Y\"",{"$f":"INDEX(dms_CF_8.1_Neg, MATCH(dms_TradingName,dms_CF_TradingName))=\"Y\"","v":true},"=INDEX(dms_CF_4.4.1_Neg, MATCH(dms_TradingName,dms_CF_TradingName))=\"Y\"",null,null,"=INDEX(dms_CF_F10, MATCH(dms_TradingName,dms_CF_TradingName))=\"Y\""]
[null,"dms_CF_TradingName","JurisdictionList","Sector","Segment","dms_CF_3.6.1","dms_CF_3.6.5","dms_CF_3.6.6.1","dms_CF_3.6.6.2","dms_CF_3.6.6.3","dms_CF_3.6.7.1","dms_CF_3.6.7.2","dms_CF_3.6.7.3","dms_CF_3.6.7.4","dms_CF_3.6.8","dms_CF_4.1","dms_CF_6.8 (set from dms_MAIFI_flag)","dms_CF_7.12","dms_CF_8.1_A  (and 8.4)","dms_CF_8.1_B  (and 8.4)","dms_CF_8.1_Neg  (and 8.4)","dms_CF_4.4.1","dms_CF_MAIFI_flag (set from dms_MAIFI_flag)","9.5 TUOS (set from Jurisdiction)","dms_CF_F10"]
[null,"Ausgrid","NSW","Electricity","Distribution",null,"Y","N","Y","Y","N","N","N","Y","N","N",{"$f":"IFERROR(IF(dms_MAIFI_flag=\"Yes\",\"N\",\"Y\"),\"Y\")","v":"Y"},"Y","N","Y","Y","N",{"$f":"IFERROR(LEFT(dms_MAIFI_flag),\"N\")","v":"N"},{"$f":"IF('AER CF'!$C7=\"Vic\",\"Y\",\"N\")","v":"N"}]
[null,"Ausgrid (Tx Assets)","NSW","Electricity","Distribution",null,"Y","N","Y","Y","N","N","N","Y","N","N","Y","Y","N","Y","Y","N",{"$f":"IFERROR(LEFT(dms_MAIFI_flag),\"N\")","v":"N"},{"$f":"IF('AER CF'!$C8=\"Vic\",\"Y\",\"N\")","v":"N"}]
[null,"AusNet (D)","Vic","Electricity","Distribution",null,"N","N",null,null,"N","N","N","N","N","N","Y","N","N","N","Y","N",{"$f":"IFERROR(LEFT(dms_MAIFI_flag),\"N\")","v":"N"},{"$f":"IF('AER CF'!$C9=\"Vic\",\"Y\",\"N\")","v":"Y"}]
[null,"AusNet (T)","Vic","Electricity","Transmission",null,"N",null,null,null,"N","N","N","N","N","Y","Y","N","N","N","Y","N","N",{"$f":"IF('AER CF'!$C10=\"Vic\",\"Y\",\"N\")","v":"Y"}]
[null,"Amadeus","NT","Gas","Transmission",null,"N",null,null,null,"N","N","N","N","N","Y","Y","N","N","N","Y","N","N",{"$f":"IF('AER CF'!$C11=\"Vic\",\"Y\",\"N\")","v":"N"},"N"]
[null,"APA GasNet","Vic","Gas","Transmission",null,"N",null,null,null,"N","N","N","N","N","Y","Y","N","N","N","Y","N","N",{"$f":"IF('AER CF'!$C12=\"Vic\",\"Y\",\"N\")","v":"Y"},"Y"]
[null,"Australian Distribution Co.","NSW","Electricity","Distribution","N","N","N","N",null,"N","N","N","N","N","N","Y","N","N","N","N","N","N",{"$f":"IF('AER CF'!$C13=\"Vic\",\"Y\",\"N\")","v":"N"}]
[null,"Australian Distribution Co. (Vic)","Vic","Electricity","Distribution","N","N","N","N",null,"N","N","N","N","N","N","Y","N","N","N","N","N","N",{"$f":"IF('AER CF'!$C14=\"Vic\",\"Y\",\"N\")","v":"Y"}]
[null,"CitiPower","Vic","Electricity","Distribution",null,"N","N",null,null,"N","N","N","N","N","N","Y","N","N","N","Y","N","N",{"$f":"IF('AER CF'!$C15=\"Vic\",\"Y\",\"N\")","v":"Y"}]
[null,"Directlink","Qld","Electricity","Transmission",null,"N",null,null,null,"N","N","N","N","N","Y","Y","N","N","Y","Y","N","N",{"$f":"IF('AER CF'!$C16=\"Vic\",\"Y\",\"N\")","v":"N"}]
[null,"ElectraNet","SA","Electricity","Transmission",null,"N",null,null,null,"N","N","N","N","N","Y","Y","N","N","Y","Y","N","N",{"$f":"IF('AER CF'!$C17=\"Vic\",\"Y\",\"N\")","v":"N"}]
[null,"Endeavour Energy","NSW","Electricity","Distribution",null,"Y","N","Y","Y","N","N","N","Y","N","N","Y","Y","N","Y","Y","Y","N",{"$f":"IF('AER CF'!$C18=\"Vic\",\"Y\",\"N\")","v":"N"}]
[null,"Energex","Qld","Electricity","Distribution",null,"Y","N",null,null,"N","N","N","N","N","N","Y","Y","N","Y","Y","Y","N",{"$f":"IF('AER CF'!$C19=\"Vic\",\"Y\",\"N\")","v":"N"}]
[null,"Ergon Energy","Qld","Electricity","Distribution",null,"Y","N","Y","Y","N","N","N","N","N","N","Y","Y","N","Y","Y","N","N",{"$f":"IF('AER CF'!$C20=\"Vic\",\"Y\",\"N\")","v":"N"}]
[null,"Essential Energy","NSW","Electricity","Distribution",null,"Y","N","Y","Y","N","N","N","Y","N","N","Y","Y","N","Y","Y","N","N",{"$f":"IF('AER CF'!$C21=\"Vic\",\"Y\",\"N\")","v":"N"}]
[null,"Evoenergy Distribution","ACT","Electricity","Distribution",null,"Y","N","Y","Y","Y","Y","N","Y","N","Y","Y","Y","N","Y","Y","N","N",{"$f":"IF('AER CF'!$C22=\"Vic\",\"Y\",\"N\")","v":"N"}]
[null,"Evoenergy Distribution (Tx Assets)","ACT","Electricity","Distribution",null,"Y","N","Y","Y","Y","Y","N","Y","N","Y","Y","Y","N","Y","Y","N","N",{"$f":"IF('AER CF'!$C23=\"Vic\",\"Y\",\"N\")","v":"N"}]
[null,"Jemena Electricity","Vic","Electricity","Distribution",null,"N","N",null,null,"N","N","N","N","N","N","Y","N","N","N","Y","N","N",{"$f":"IF('AER CF'!$C24=\"Vic\",\"Y\",\"N\")","v":"Y"}]
[null,"Murraylink","SA","Electricity","Transmission",null,"N",null,null,null,"N","N","N","N","N","Y","Y","N","N","Y","Y","N","N",{"$f":"IF('AER CF'!$C25=\"Vic\",\"Y\",\"N\")","v":"N"}]
[null,"Power and Water","NT","Electricity","Distribution",null,"N","N",null,null,"N","Y","N","N","N","Y","Y","Y","Y","Y","Y","N","N",{"$f":"IF('AER CF'!$C26=\"Vic\",\"Y\",\"N\")","v":"N"}]
[null,"Powercor Australia","Vic","Electricity","Distribution",null,"N","N",null,null,"N","N","N","N","N","N","Y","N","N","N","Y","N","N",{"$f":"IF('AER CF'!$C27=\"Vic\",\"Y\",\"N\")","v":"Y"}]
[null,"Powerlink","Qld","Electricity","Transmission",null,"N",null,null,null,"N","N","N","N","N","Y","Y","N","N","Y","Y","N","N",{"$f":"IF('AER CF'!$C28=\"Vic\",\"Y\",\"N\")","v":"N"}]
[null,"Roma to Brisbane Pipeline","Qld","Gas","Transmission",null,"N",null,null,null,"N","N","N","N","N","Y","Y","N","N","N","Y","N","N",{"$f":"IF('AER CF'!$C29=\"Vic\",\"Y\",\"N\")","v":"N"},"Y"]
[null,"SA Power Networks","SA","Electricity","Distribution",null,"Y","N",null,null,"N","N","N","N","N","N","Y","Y","N","Y","N","N","N",{"$f":"IF('AER CF'!$C30=\"Vic\",\"Y\",\"N\")","v":"N"}]
[null,"TasNetworks (D)","Tas","Electricity","Distribution",null,"Y","N",null,null,"N","N","N","N","N","N","Y","Y","N","Y","Y","N","N",{"$f":"IF('AER CF'!$C31=\"Vic\",\"Y\",\"N\")","v":"N"}]
[null,"TasNetworks (T)","Tas","Electricity","Transmission",null,"N",null,null,null,"N","N","N","N","N","Y","Y","N","N","Y","Y","N","N",{"$f":"IF('AER CF'!$C32=\"Vic\",\"Y\",\"N\")","v":"N"}]
[null,"TransGrid","NSW","Electricity","Transmission",null,"N",null,null,null,"N","N","N","N","N","Y","Y","N","N","Y","Y","N","N",{"$f":"IF('AER CF'!$C33=\"Vic\",\"Y\",\"N\")","v":"N"}]
[null,"United Energy","Vic","Electricity","Distribution",null,"N","N",null,null,"N","N","N","N","N","N","Y","N","N","N","Y","N","N",{"$f":"IF('AER CF'!$C34=\"Vic\",\"Y\",\"N\")","v":"Y"}]
[]
[]
[null,"Confidential"]
[null,"Amended"]
[]
[null,"Worksheet 6.2 STPIS reliability"]
[null,"Formula",null,null,null,"Applied to:"]
[]
[null,"=INDEX(dms_CBD_flag,MATCH(dms_TradingName,dms_TradingName_List))=\"NO\"",null,null,null,"$D$11,$D$17,$D$23,$D$33,$D$39,$D$45,$D$55,$D$61,$D$67,$D$77,$D$83,$D$89"]
[null,"=INDEX(dms_Urban_flag,MATCH(dms_TradingName,dms_TradingName_List))=\"NO\"",null,null,null,"$D$12,$D$18,$D$24,$D$56,$D$62,$D$78,$D$68,$D$84"]
[null,"=INDEX(dms_ShortRural_flag,MATCH(dms_TradingName,dms_TradingName_List))=\"NO\"",null,null,null,"$D$13,$D$19,$D$25,$D$57,$D$63,$D$69,$D$79,$D$85"]
[null,"=INDEX(dms_LongRural_flag,MATCH(dms_TradingName,dms_TradingName_List))=\"NO\"",null,null,null,"$D$14,$D$20,$D$26,$D$58,$D$64,$D$65,$D$70,$D$71,$D$80,$D$86"]
[null,"=INDEX(dms_FeederType_5_flag,MATCH(dms_TradingName,dms_TradingName_List))=\"NO\"",null,null,null,"$D$87,$D$81,$D$71,$D$65,$D$59,$D$49,$D$43,$D$37,$D$21,$D$15"]
[null,"=dms_MAIFI_Flag=\"No\"",null,null,null,"$D$55:$D$72"]
[]
[]
[null,"Business & other details"]
[null,"=(INDEX(dms_Model_Span,MATCH(dms_Model,dms_Model_List))>1)"]
[null,"=(INDEX(dms_Model_Span,MATCH(dms_Model,dms_Model_List))=1)"]
[]
[]
[null,"STYLES IN USE"]
[null,"HEADING ONE","dms_1"]
[null,"HEADING TWO","dms_2"]
[null,"HEADING THREE","dms_3"]
[null,"HEADING FOUR","dms_4"]
[null,"HEADING FIVE","dms_5"]
[null,5.1109999999999998,"dms_NUM"]
[null,5.45E-2,"dms_NUM%"]
[null,5.5555000000000003,"dms_NUM3d"]
[null,"Text description","dms_Row_Locked"]
[null,"Text description","dms_Row1"]
[null,"Text description","dms_Row2"]
[null,"Total","dms_T1"]
[null,"Total","dms_T2"]
[null,"EXPENSES","dms_BH"]
[null,2019,"dms_BY1"]
[null,2019,"dms_BY2"]
[null,"VOLUMES","dms_GH"]
[null,2019,"dms_GY1"]
[null,2019,"dms_GY2"]

{"sheet":"AER NRs","index":2,"n_rows":227,"n_cols":16,"rows_kept":227,"cut":false,"hidden":true,"merged":[[4,1,27,1],[175,1,176,1],[178,1,183,1],[64,1,77,1],[134,1,149,1],[83,1,96,1],[151,1,157,1],[117,1,131,1],[207,1,212,1],[198,1,199,1],[31,1,54,1],[99,1,106,1],[109,1,114,1],[190,1,191,1],[194,1,195,1],[159,1,173,1],[32,67,32,88],[33,67,33,88],[34,67,34,88],[35,10,39,10],[43,10,44,10],[32,10,34,10],[32,36,32,57],[33,36,33,57],[34,36,34,57]]}
[null,"AER NAMED RANGES"]
[]
[null,"DROP DOWN SELECTORS USED IN WORKBOOKS"]
[]
[null,"COVER SHEET","dms_DataQuality_List","dms_Confid_status_List"]
[null,null,"-- select --","-- select --"]
[null,null,"Actual","Public"]
[null,null,"Estimate","Confidential"]
[null,null,"Consolidated"]
[]
[]
[null,null,"For all files either AER or business needs to be able to specify the type of submission","For PTRM & RFM templates we must provide a choice in case they change their form of control - otherwise it is drawn from the business specific lookup table above."]
[null,null,"dms_SourceList","dms_FormControl_Choices"]
[null,null,"-- select --","Revenue cap"]
[null,null,"After appeal","Revenue yield"]
[null,null,"Draft decision","Tariff cap"]
[null,null,"Final decision","Weighted average price cap"]
[null,null,"PTRM update 1"]
[null,null,"PTRM update 2"]
[null,null,"PTRM update 3"]
[null,null,"PTRM update 4"]
[null,null,"PTRM update 5"]
[null,null,"PTRM update 6"]
[null,null,"PTRM update 7"]
[null,null,"Recast"]
[null,null,"Regulatory proposal"]
[null,null,"Reporting"]
[null,null,"Revised regulatory proposal"]
[]
[]
[null,null,null,null,null,null,null,null,null,null,"This is used to create an image to insert on 6.3 STPIS sheet - not for dropdown lists.",null,null,"GAS"]
[null,"CA & RESET RINS \nDNSP","dms_DNSP_020301_SubstationType","dms_DNSP_020301_ProjectType","dms_DNSP_020301_ProjectTrigger","dms_DNSP_020302_ProjectType","dms_DNSP_020302_ProjectTrigger","dms_STPIS_Exclusion_List","dms_Reason_Interruption","dms_Reason_Interruption_Detailed","Reason for interruption",null,null,"dms_N0205_AssetType"]
[null,null,"Subtransmission substation","New substation establishment","Demand growth","New line on new route - single circuit","Demand growth","Weather","Animal","Animal impact","Animal","Animal impact",null,"Cast Iron"]
[null,null,"Zone substation","Substation upgrade - capacity"," Voltage issues","New line on new route - dual circuit"," Voltage issues","Equipment failure","Asset failure","Animal nesting/burrowing, etc and other",null,"Animal nesting/burrowing, etc and other",null,"PVC"]
[null,null,"Switching station","Substation upgrade - voltage"," Reactive power issue","New line on new route - other"," Reactive power issue","Operational error","Other","Other",null,"Other",null,"Polyamide"]
[null,null,"Other","Other"," Fault level issues","Line rebuild over existing route - single circuit"," Fault level issues","Vegetation","Overloads","LV","Asset failure","LV",null,"High density polyethylene (80)"]
[null,null,null,null," Safety","Line rebuild over existing route - dual circuit"," Net market benefit","Animals","Planned","Distribution substation",null,"Distribution substation",null,"High density polyethylene (100)"]
[null,null,null,null," Environment","Reconductor - Single circuit"," Safety","Third party impacts","Network business","HV",null,"HV",null,"High density polyethylene (250)"]
[null,null,null,null," Other","Reconductor - Dual circuit"," Environment","Transmission failure","Third party","Zone substation",null,"Zone substation",null,"High density polyethylene (575)"]
[null,null,null,null,null,"Reconductor - Other"," Other","Load shedding","Unknown","Subtransmission",null,"Subtransmission",null,"Medium density polyethylene"]
[null,null,null,null,null,"Line upgrade - raising/retensoring",null,"Inter-distributor connection failure","Vegetation","insert description of 'other'","Other","insert description of 'other'",null,"Unprotected steel"]
[null,null,null,null,null,"Line upgrade - voltage upgrade",null,"Other","Weather","Network error","Overloads",null,null,"Protected steel"]
[null,null,null,null,null,"Line upgrade - capacity",null,null,"2 - STPIS Exclusion (3.3)(a)","Switching and protection error","Planned",null,null,"Other"]
[null,null,null,null,null,"String spare circuit",null,null,"3 - STPIS Exclusion (3.3)(a)","Fire","Network business","Network error"]
[null,null,null,null,null,"Other",null,null,"4 - STPIS Exclusion (3.3)(a)","Other",null,"Switching and protection error"]
[null,null,null,null,null,null,null,null,"5 - STPIS Exclusion (3.3)(a)","Dig-in","Third party","Fire"]
[null,null,null,null,null,null,null,null,"6 - STPIS Exclusion (3.3)(a)","Unauthorised access",null,"Other"]
[null,null,null,null,null,null,null,null,"7 - STPIS Exclusion (3.3)(a)","Vehicle impact",null,"Dig-in"]
[null,null,null,null,null,null,null,null,null,"Unknown",null,"Unauthorised access"]
[null,null,null,null,null,null,null,null,null,"Blow-in/Fall-in - NSP responsibility",null,"Vehicle impact"]
[null,null,null,null,null,null,null,null,null,"Grow-in - NSP responsibility","Unknown","Unknown"]
[null,null,null,null,null,null,null,null,null,"Blow-in/Fall-in - Other responsible party","Vegetation","Blow-in/Fall-in - NSP responsibility"]
[null,null,null,null,null,null,null,null,null,"Grow-in - Other responsible party",null,"Grow-in - NSP responsibility"]
[null,null,null,null,null,null,null,null,null,null,null,"Blow-in/Fall-in - Other responsible party"]
[null,null,null,null,null,null,null,null,null,null,null,"Grow-in - Other responsible party"]
[null,null,null,null,null,null,null,null,null,null,"Weather"]
[null,null,null,null,null,null,null,null,null,null,"2 - STPIS Exclusion (3.3)(a)"]
[null,null,null,null,null,null,null,null,null,null,"3 - STPIS Exclusion (3.3)(a)"]
[null,null,null,null,null,null,null,null,null,null,"4 - STPIS Exclusion (3.3)(a)"]
[null,null,null,null,null,null,null,null,null,null,"5 - STPIS Exclusion (3.3)(a)"]
[null,null,null,null,null,null,null,null,null,null,"6 - STPIS Exclusion (3.3)(a)"]
[null,null,null,null,null,null,null,null,null,null,"7 - STPIS Exclusion (3.3)(a)"]
[]
[]
[null,"CA & RESET RINS \nTNSP ","dms_TNSP_0203_SubstationType","dms_TNSP_020301_ProjectType","dms_TNSP_020301_ProjectTrigger","dms_TNSP_020302_ProjectType","dms_TNSP_0203_ProjectTrigger"]
[null,null,"Terminal station","New substation establishment","Demand growth","New line on new route - single circuit","Demand growth"]
[null,null,"Switching station","Capacity upgrade"," Voltage issues","New line on new route - dual circuit"," Voltage issues"]
[null,null,"Transmission substation","Voltage upgrade"," Reactive power issue","New line on new route - other"," Reactive power issue"]
[null,null,"Other","Other"," Fault level issues","Line rebuild over existing route - single circuit"," Fault level issues"]
[null,null,null,null,"Net market benefit","Line rebuild over existing route - dual circuit"," Net market benefit"]
[null,null,null,null," Safety","Reconductor - Single circuit"," Safety"]
[null,null,null,null," Environment","Reconductor - Dual circuit"," Environment"]
[null,null,null,null," Other","Reconductor - Other"," Other"]
[null,null,null,null,null,"Line upgrade - raising/retensoring"]
[null,null,null,null,null,"Line upgrade - voltage upgrade"]
[null,null,null,null,null,"Line upgrade - capacity"]
[null,null,null,null,null,"String spare circuit"]
[null,null,null,null,null,"Other"]
[]
[]
[]
[null,"NAMED RANGES USED IN ETL PROCESS"]
[null,null,null,null,null,null,null,null,null,null,null,null,"GAS ARR & RESET"]
[null,"CA & RESET RINS \nDNSP ONLY","dms_020303_01_UOM","dms_020501_01_UOM","dms_020501_02_UOM","dms_020501_03_UOM","dms_020501_04_UOM","dms_020701_01_UOM","dms_020701_02_UOM","dms_020701_01_Rows","dms_040102_01_UOM","dms_040102_04_UOM","dms_S140101_UOM","dms_S140201_UOM","dms_E050201_UOM","dms_E050202_UOM"]
[null,null,"Circuit line length in km","0's","0's","0's","0's","km","km","Route line length within zone","0's","days","number","number per km","per metre per connection","metres per connection"]
[null,null,"Circuit line length in km","0's","0's","0's","0's","0's","0's","Number of maintenance spans","0's","0's","number","number","per service per connection","number per connection"]
[null,null,"Circuit line length in km","MVA added","MVA added","MVA added","MVA added","km","km","Total length of maintenance spans","0's","$0s","number","number","number per connection","number per connection"]
[null,null,"Circuit line length in km","0's","0's","0's","0's","km","km","Length of vegetation corridors","$0s","0's","km"]
[null,null,"Number","total spend $0s","total spend $0s","total spend $0s","total spend $0s","0's","0's","Average number of trees per maintenance span"]
[null,null,"Number","net circuit km added","net circuit km added","net circuit km added","net circuit km added","years","years","Average frequency of cutting cycle"]
[null,null,"Number","total spend $0s","total spend $0s","total spend $0s","total spend $0s"]
[null,null,null,"net circuit km added","net circuit km added","net circuit km added","net circuit km added"]
[null,null,null,"total spend $0s","total spend $0s","total spend $0s","total spend $0s"]
[null,null,null,"0's",null,"$0s"]
[null,null,null,"0's"]
[null,null,null,"0's"]
[null,null,null,"$0s"]
[]
[]
[null,"CA & RESET RINS \nTNSP ONLY","dms_020701_01_UOM"]
[null,null,"km"]
[null,null,"0's"]
[null,null,"km"]
[null,null,"0's"]
[null,null,"km"]
[null,null,"metres"]
[null,null,"years"]
[]
[]
[null,"CA & RESET RINS \nDNSP & TNSP","dms_020603_01_UOM"]
[null,null,"0's"]
[null,null,"0's"]
[null,null,"0's"]
[null,null,"0's"]
[null,null,"(per cent)"]
[]
[]
[null,"EB & RESET RINS \nDNSP ONLY","dms_030601_01_UOM","dms_030601_02_UOM","dms_030701_01_UOM","dms_030702_01_UOM","dms_030703_01_UOM"]
[null,null,"minutes/customer","minutes/customer","Customer / km","%","km"]
[null,null,"minutes/customer","minutes/customer","MWh/customer","Number of spans"]
[null,null,"interruptions/customer","interruptions/customer","kVA / customer","Number of spans"]
[null,null,"interruptions/customer","interruptions/customer",null,"Number of spans"]
[null,null,null,null,null,"Number of spans"]
[null,null,null,null,null,"Years"]
[null,null,null,null,null,"Years"]
[null,null,null,null,null,"Trees"]
[null,null,null,null,null,"Trees"]
[null,null,null,null,null,"Defects"]
[null,null,null,null,null,"Defects"]
[null,null,null,null,null,"Spans"]
[null,null,null,null,null,"km"]
[null,null,null,null,null,"Spans"]
[]
[null,null,"WHEN INSERTING COVER SHEET INTO A TNSP FILE - APPLY THESE NAMED RANGES"]
[null,"EB & RESET RINS \nTNSP ONLY","dms_030601_01_UOM",null,"dms_030701_01_UOM","dms_030702_01_UOM"]
[null,null,"%",null,"Number of spans","km"]
[null,null,"number",null,"Years","%"]
[null,null,"number",null,"Trees","km"]
[null,null,"%",null,"Defects","number"]
[null,null,"number",null,"Number of spans"]
[null,null,"number",null,"km"]
[null,null,"%",null,"km"]
[null,null,"number",null,"Number of spans"]
[null,null,"number"]
[null,null,"%"]
[null,null,"number"]
[null,null,"%"]
[null,null,"number"]
[null,null,"%"]
[null,null,"number"]
[]
[null,"EB & RESET RINS \nDNSP & TNSP","dms_EB_RAB_PIT"]
[null,null,"Beginning of year"]
[null,null,"End of year"]
[null,null,"End of year"]
[null,null,"End of year"]
[null,null,"End of year"]
[null,null,"End of year"]
[]
[null,"ARR \nDNSP ONLY","dms_030605_UOM","dms_03060703_UOM","dms_E020202_UOM","Spare"]
[null,null,"number","number","Length of mains replaced"]
[null,null,"number","number","Number of services replaced"]
[null,null,"number","number"]
[null,null,"number","number"]
[null,null,"number","(per cent)"]
[null,null,"number"]
[null,null,"number"]
[null,null,"number"]
[null,null,"number"]
[null,null,"number"]
[null,null,"number"]
[null,null,"number"]
[null,null,"(per cent)"]
[null,null,"(per cent)",""]
[]
[null,"RFM","dms_Beg","dms_Mid","dms_End"]
[null,null,"Beginning of year","Mid year","End of Year"]
[]
[null,"PTRM","dms_PTRM_RAB_PIT","dms_PTRM_TAB_PIT","DMS_Xfactor"]
[null,null,"Beginning of year","Beginning of year","x factors"]
[null,null,"End of year","End of year"]
[null,null,"End of year","End of year"]
[null,null,"End of year","End of year"]
[null,null,"End of year"]
[]
[]
[null,"STPIS & MIC NAMED RANGES "]
[]
[null,"These \"row descriptions\" are the column headings in the various templates but become row descriptions in the ETL process"]
[]
[null,"Table 6.3 sustained interruptions - row descriptions","dms_060301_CustNo_Affected_Row","dms_060301_Avg_Duration_Sustained_Int_Row","dms_060301_Effect_unplanned_SAIDI_Row","dms_060301_Effect_unplanned_SAIFI_Row"]
[null,null,"Number of customers affected by the interruption","Average duration of sustained customer interruption","Effect on unplanned SAIDI","Effect on unplanned SAIFI"]
[]
[]
[null,"Table 6.1 telephone answering - row descriptions and start date","dms_060101_Rows","dms_060102_Rows","dms_060101_StartDateTxt"]
[null,null,"Total number of calls \n(after removing excluded events)","Number of calls answered within 30 seconds \n(after excluding excluded events) ",{"$f":"dms_060701_StartDateTxt","v":"1-Jul-2015"}]
[]
[]
[null,"Table 6.8.1 - row descriptions","dms_060801_01_Rows","dms_060801_02_Rows","dms_060801_03_Rows","dms_060801_04_Rows"]
[null,null,"Number of interruptions","Duration of interruptions","Total unplanned minutes off supply","Effect on unplanned MAIFI"]
[]
[]
[null,"Table 7.9.4 - market impact component - row descriptions","dms_070904_01_Rows","without exclusions","with exclusions"]
[]
[]
[null,"These headings (Lists) are determined from the INDEX/MATCH function on the NSP selected on the Business & other details sheet"]
[]
[null,"Table 6.7.1 - daily performance data - unplanned - MAIFI  -- row descriptions and header named range values","dms_060701_Feeder_Header_Lvl4",{"$f":"INDEX(dms_FeederName_1,MATCH(dms_TradingName,dms_TradingName_List))","v":"CBD"},{"$f":"INDEX(dms_FeederName_1,MATCH(dms_TradingName,dms_TradingName_List))","v":"CBD"},{"$f":"INDEX(dms_FeederName_2,MATCH(dms_TradingName,dms_TradingName_List))","v":"Urban"},{"$f":"INDEX(dms_FeederName_2,MATCH(dms_TradingName,dms_TradingName_List))","v":"Urban"},{"$f":"INDEX(dms_FeederName_3,MATCH(dms_TradingName,dms_TradingName_List))","v":"Short rural"},{"$f":"INDEX(dms_FeederName_3,MATCH(dms_TradingName,dms_TradingName_List))","v":"Short rural"},{"$f":"INDEX(dms_FeederName_4,MATCH(dms_TradingName,dms_TradingName_List))","v":"Long rural"},{"$f":"INDEX(dms_FeederName_4,MATCH(dms_TradingName,dms_TradingName_List))","v":"Long rural"},{"$f":"IF((INDEX(dms_FeederName_5,MATCH(dms_TradingName,dms_TradingName_List))=0),\"Network\",(INDEX(dms_FeederName_5,MATCH(dms_TradingName,dms_TradingName_List))))","v":"Network"},{"$f":"IF((INDEX(dms_FeederName_5,MATCH(dms_TradingName,dms_TradingName_List))=0),\"Network\",(INDEX(dms_FeederName_5,MATCH(dms_TradingName,dms_TradingName_List))))","v":"Network"},"Network","Network"]
[]
[null,null,"dms_060701_Rows","All events","After removing excluded events","All events","After removing excluded events","All events","After removing excluded events","All events","After removing excluded events","All events","After removing excluded events","All events","After removing excluded events"]
[null,null,null,"the number of column headings changes from 10 to 12 depending on the number of feeder categories for the NSP"]
[]
[null,null,"dms_0603_FeederList",{"$f":"INDEX(dms_FeederName_1,MATCH(dms_TradingName,dms_TradingName_List))","v":"CBD"},{"$f":"INDEX(dms_FeederName_2,MATCH(dms_TradingName,dms_TradingName_List))","v":"Urban"},{"$f":"INDEX(dms_FeederName_3,MATCH(dms_TradingName,dms_TradingName_List))","v":"Short rural"},{"$f":"INDEX(dms_FeederName_4,MATCH(dms_TradingName,dms_TradingName_List))","v":"Long rural"}]
[]
[]
[null,"Use these to add to specific worksheets in existing files","Use these to add to specific worksheets in existing files"]
[]
[]
[null,"ARRs 6.7 STPIS daily performance","dms_060101_Values","dms_060102_Values","dms_060701_Values"]
[null,null,"dms_LeapYear"]
[]
[]
[null,"ARR's  6.8 STPIS exclusions","dms_060801_Event_Date","dms_060801_OutageID","dms_060801_FeederID","dms_060801_FeederClass","dms_060801_CauseID","dms_060801_01_Values","dms_060801_02_Values","dms_060801_03_Values","dms_060801_Excl_Cat","dms_060801_04_Values"]
[null,null,"dms_060801_StartCell"]
[]
[]
[null,"CA 6.3 sustained interruptions","dms_060301_Event_Date","dms_060301_Event_Time","dms_060301_AssetID","dms_060301_FeederClass","dms_060301_Reason","dms_060301_DetailedReason","dms_060301_CustNo_Affected_Values","dms_060301_Avg_Duration_Sustained_Int_Values","dms_060301_Effect_unplanned_SAIDI_Values","dms_060301_Effect_unplanned_SAIFI_Values","dms_060301_MED"]

{"sheet":"AER lookups","index":3,"n_rows":87,"n_cols":37,"rows_kept":87,"cut":false,"hidden":true,"merged":[[10,25,10,35],[21,1,21,4],[11,25,11,28],[11,30,11,34],[11,35,13,35]]}
[null,"AER LOOKUP TABLES"]
[]
[null,"Data in these columns used for data validation and database purposes."]
[null,"Date last modified:","2017-01-16","added (Albury and Victora) for AGN"]
[null,null,"2016-10-17","updated TransGrid's correct legal name, corrected TasNetworks (T) to June financial year"]
[null,null,"2017-02-01","inserted Power and Water, added NRs (dms_FeederCat_1 and dms_FeederCat_2)"]
[null,null,"2017-03-03","inserted AEMO as a business"]
[null,null,"2018-03-28","major changes to accommodate STPIS"]
[null,null,"Template Version",5]
[]
[null,null,null,null,null,null,null,null,null,null,null,null,null,null,null,null,null,null,null,null,null,null,null,null,null,"FOR ELECTRICITY BUSINESSES ONLY"]
[null,null,null,null,null,null,null,null,null,null,null,null,null,null,null,null,null,null,null,null,null,null,null,null,null,"Feeder Types",null,null,null,"TasNetworks (D)","Feeder Names"]
[]
[null,null,null,null,null,null,null,null,null,null,null,null,null,null,null,null,null,null,null,null,null,null,null,null,null,"CBD","Urban","Short rural","long rural","EXTRA"]
[null,"dms_TradingName_List","dms_TradingNameFull_List","dms_ABN_List","dms_JurisdictionList","dms_Sector_List","dms_Segment_List","dms_FormControl_List","dms_RPT_List","dms_RPTMonth_List","dms_CRCPlength_List","dms_FRCPlength_List","dms_PRCPlength_List","dms_663_List","dms_DeterminationRef_List","dms_Addr1_List","dms_Addr2_List","dms_Suburb_List","dms_State_List","dms_PostCode_List","dms_PAddr1_List","dms_PAddr2_List","dms_PSuburb_List","dms_PState_List","dms_PPostCode_List","dms_CBD_flag","dms_Urban_flag","dms_ShortRural_flag","dms_LongRural_flag","dms_FeederType_5_flag","dms_FeederName_1","dms_FeederName_2","dms_FeederName_3","dms_FeederName_4","dms_FeederName_5","dms_Public_Lighting_List","Name"]
[null,"AusNet (T)","AusNet Transmission Group Pty Ltd",78079798173,"Vic","Electricity","Transmission","Revenue cap","Financial","March",5,5,5,2,"transmission determination","Level 32","2 Southbank Boulevard","SOUTHBANK","Vic",3006,"Locked Bag 14051",null,"MELBOURNE CITY MAIL CENTRE","Vic",8001,"NO","NO","NO","NO","NO","CBD","Urban","Short rural","Long rural",null,"NO",{"$f":"B16","v":"AusNet (T)"}]
[null,"Powerlink","Queensland Electricity Transmission Corporation Limited trading as Powerlink Queensland",82078849233,"Qld","Electricity","Transmission","Revenue cap","Financial","June",5,5,5,5,"transmission determination","33 Harold St",null,"VIRGINIA","Qld",4014,"PO Box 1193",null,"VIRGINIA","QLD",4014,"NO","NO","NO","NO","NO","CBD","Urban","Short rural","Long rural",null,"NO","Powerlink"]
[]
[]
[]
[]
[null,"The Reg Year Ending (dms_RYE) must be set to the last year of the regulatory period. For forecast data is is usually (FRCP_y5) for actual it is a single year (CRY). For historical actual data the RYE will need to be set manually in the business details sheet by setting the dms_Multiyear_flag to 1 and putting the correct value in 'dms_Specified_FinalYear. See cells C67:C68"]
[null,"dms_Model_List ","dms_Model_Name_Format1","dms_Worksheet_List","dms_Model_Span_List"]
[null,"ARR","Annual Reporting",{"$f":"IF(dms_MultiYear_ResponseFlag=\"yes\",\"NEW HISTORICAL ANNUAL REPORTING\",\"ANNUAL REPORTING\")","v":"ANNUAL REPORTING"},1]
[null,"CA","Category Analysis",{"$f":"IF(dms_MultiYear_ResponseFlag=\"yes\",\"NEW HISTORICAL CATEGORY ANALYSIS\",\"CATEGORY ANALYSIS\")","v":"CATEGORY ANALYSIS"},1]
[null,"CESS","Capitlal Expenditure","CAPITLAL EXPENDITURE SHARING SCHEMING",5]
[null,"CPI","CPI","CPI",5]
[null,"EB","Economic Benchmarking",{"$f":"IF(dms_MultiYear_ResponseFlag=\"yes\",\"NEW HISTORICAL ECONOMIC BENCHMARKING\",\"ECONOMIC BENCHMARKING\")","v":"ECONOMIC BENCHMARKING"},1]
[null,"Pricing","Pricing Proposal","PRICING PROPOSAL",5]
[null,"PTRM","Post Tax Revenue Model","POST TAX REVENUE MODEL",5]
[null,"Reset","Regulatory Reporting (Reset)","REGULATORY REPORTING STATEMENT",5]
[null,"RFM","Roll Forward Model","ROLL FORWARD MODEL",5]
[null,"WACC","Weighted Average Cost of Capital","WEIGHTED AVERAGE COST OF CAPITAL",1]
[]
[]
[]
[null,"Financial","Calendar",null,"PREVIOUS",null,"CURRENT",null,"FORTHCOMING"]
[null,"1987-88","1988","PRCP_y1",{"$f":"INDEX(INDIRECT(dms_RPT),dms_PRCP_start_row)","v":"2012-13"},"CRCP_y1",{"$f":"INDEX(INDIRECT(dms_RPT),dms_CRCP_start_row)","v":"2017-18"},{"$f":"FRCP_y1","v":"2022-23"},{"$f":"INDEX(INDIRECT(dms_RPT),dms_FRCP_start_row)","v":"2022-23"}]
[null,"1988-89","1989","PRCP_y2",{"$f":"INDEX(INDIRECT(dms_RPT),dms_PRCP_start_row+1)","v":"2013-14"},"CRCP_y2",{"$f":"INDEX(INDIRECT(dms_RPT),dms_CRCP_start_row+1)","v":"2018-19"},"FRCP_y2",{"$f":"INDEX(INDIRECT(dms_RPT),dms_FRCP_start_row+1)","v":"2023-24"}]
[null,"1989-90","1990","PRCP_y3",{"$f":"INDEX(INDIRECT(dms_RPT),dms_PRCP_start_row+2)","v":"2014-15"},"CRCP_y3",{"$f":"INDEX(INDIRECT(dms_RPT),dms_CRCP_start_row+2)","v":"2019-20"},"FRCP_y3",{"$f":"INDEX(INDIRECT(dms_RPT),dms_FRCP_start_row+2)","v":"2024-25"}]
[null,"1990-91","1991","PRCP_y4",{"$f":"INDEX(INDIRECT(dms_RPT),dms_PRCP_start_row+3)","v":"2015-16"},"CRCP_y4",{"$f":"INDEX(INDIRECT(dms_RPT),dms_CRCP_start_row+3)","v":"2020-21"},"FRCP_y4",{"$f":"INDEX(INDIRECT(dms_RPT),dms_FRCP_start_row+3)","v":"2025-26"}]
[null,"1991-92","1992","PRCP_y5",{"$f":"INDEX(INDIRECT(dms_RPT),dms_PRCP_start_row+4)","v":"2016-17"},"CRCP_y5",{"$f":"INDEX(INDIRECT(dms_RPT),dms_CRCP_start_row+4)","v":"2021-22"},"FRCP_y5",{"$f":"INDEX(INDIRECT(dms_RPT),dms_FRCP_start_row+4)","v":"2026-27"}]
[null,"1992-93","1993","PRCP_y6",{"$f":"INDEX(INDIRECT(dms_RPT),dms_PRCP_start_row+5)","v":"2017-18"},"CRCP_y6",{"$f":"INDEX(INDIRECT(dms_RPT),dms_CRCP_start_row+5)","v":"2022-23"},"FRCP_y6",{"$f":"INDEX(INDIRECT(dms_RPT),dms_FRCP_start_row+5)","v":"2027-28"}]
[null,"1993-94","1994","PRCP_y7",{"$f":"INDEX(INDIRECT(dms_RPT),dms_PRCP_start_row+6)","v":"2018-19"},"CRCP_y7",{"$f":"INDEX(INDIRECT(dms_RPT),dms_CRCP_start_row+6)","v":"2023-24"},"FRCP_y7",{"$f":"INDEX(INDIRECT(dms_RPT),dms_FRCP_start_row+6)","v":"2028-29"}]
[null,"1994-95","1995","PRCP_y8",{"$f":"INDEX(INDIRECT(dms_RPT),dms_PRCP_start_row+7)","v":"2019-20"},"CRCP_y8",{"$f":"INDEX(INDIRECT(dms_RPT),dms_CRCP_start_row+7)","v":"2024-25"},"FRCP_y8",{"$f":"INDEX(INDIRECT(dms_RPT),dms_FRCP_start_row+7)","v":"2029-30"}]
[null,"1995-96","1996","PRCP_y9",{"$f":"INDEX(INDIRECT(dms_RPT),dms_PRCP_start_row+8)","v":"2020-21"},"CRCP_y9",{"$f":"INDEX(INDIRECT(dms_RPT),dms_CRCP_start_row+8)","v":"2025-26"},"FRCP_y9",{"$f":"INDEX(INDIRECT(dms_RPT),dms_FRCP_start_row+8)","v":"2030-31"}]
[null,"1996-97","1997","PRCP_y10",{"$f":"INDEX(INDIRECT(dms_RPT),dms_PRCP_start_row+9)","v":"2021-22"},"CRCP_y10",{"$f":"INDEX(INDIRECT(dms_RPT),dms_CRCP_start_row+9)","v":"2026-27"},"FRCP_y10",{"$f":"INDEX(INDIRECT(dms_RPT),dms_FRCP_start_row+9)","v":"2031-32"}]
[null,"1997-98","1998","PRCP_y11",{"$f":"INDEX(INDIRECT(dms_RPT),dms_PRCP_start_row+10)","v":"2022-23"},"CRCP_y11",{"$f":"INDEX(INDIRECT(dms_RPT),dms_CRCP_start_row+10)","v":"2027-28"},"FRCP_y11",{"$f":"INDEX(INDIRECT(dms_RPT),dms_FRCP_start_row+10)","v":"2032-33"}]
[null,"1998-99","1999","PRCP_y12",{"$f":"INDEX(INDIRECT(dms_RPT),dms_PRCP_start_row+11)","v":"2023-24"},"CRCP_y12",{"$f":"INDEX(INDIRECT(dms_RPT),dms_CRCP_start_row+11)","v":"2028-29"},"FRCP_y12",{"$f":"INDEX(INDIRECT(dms_RPT),dms_FRCP_start_row+11)","v":"2033-34"}]
[null,"1999-00","2000","PRCP_y13",{"$f":"INDEX(INDIRECT(dms_RPT),dms_PRCP_start_row+12)","v":"2024-25"},"CRCP_y13",{"$f":"INDEX(INDIRECT(dms_RPT),dms_CRCP_start_row+12)","v":"2029-30"},"FRCP_y13",{"$f":"INDEX(INDIRECT(dms_RPT),dms_FRCP_start_row+12)","v":"2034-35"}]
[null,"2000-01","2001","PRCP_y14",{"$f":"INDEX(INDIRECT(dms_RPT),dms_PRCP_start_row+13)","v":"2025-26"},"CRCP_y14",{"$f":"INDEX(INDIRECT(dms_RPT),dms_CRCP_start_row+13)","v":"2030-31"},"FRCP_y14",{"$f":"INDEX(INDIRECT(dms_RPT),dms_FRCP_start_row+13)","v":"2035-36"}]
[null,"2001-02","2002","PRCP_y15",{"$f":"INDEX(INDIRECT(dms_RPT),dms_PRCP_start_row+14)","v":"2026-27"},"CRCP_y15",{"$f":"INDEX(INDIRECT(dms_RPT),dms_CRCP_start_row+14)","v":"2031-32"},"FRCP_y15",{"$f":"INDEX(INDIRECT(dms_RPT),dms_FRCP_start_row+14)","v":"2036-37"}]
[null,"2002-03","2003","PRCP_y16",{"$f":"INDEX(INDIRECT(dms_RPT),dms_PRCP_start_row+15)","v":"2027-28"},"CRCP_y16",{"$f":"INDEX(INDIRECT(dms_RPT),dms_CRCP_start_row+15)","v":"2032-33"},"FRCP_y16",{"$f":"INDEX(INDIRECT(dms_RPT),dms_FRCP_start_row+15)","v":{"$error":"#REF!"}}]
[null,"2003-04","2004"]
[null,"2004-05","2005"]
[null,"2005-06","2006",null,"CRY - FRY"]
[null,"2006-07","2007","dms_y1",{"$f":"IFERROR(INDEX(INDIRECT(dms_RPT),dms_CRY_start_row),0)","v":"2020-21"}]
[null,"2007-08","2008","dms_y2",{"$f":"IFERROR(INDEX(INDIRECT(dms_RPT),dms_CRY_start_row+1),0)","v":"2021-22"}]
[null,"2008-09","2009","dms_y3",{"$f":"IFERROR(INDEX(INDIRECT(dms_RPT),dms_CRY_start_row+2),0)","v":"2022-23"}]
[null,"2009-10",2010,"dms_y4",{"$f":"IFERROR(INDEX(INDIRECT(dms_RPT),dms_CRY_start_row+3),0)","v":"2023-24"}]
[null,"2010-11",2011,"dms_y5",{"$f":"IFERROR(INDEX(INDIRECT(dms_RPT),dms_CRY_start_row+4),0)","v":"2024-25"}]
[null,"2011-12",2012,"dms_y6",{"$f":"IFERROR(INDEX(INDIRECT(dms_RPT),dms_CRY_start_row+5),0)","v":"2025-26"}]
[null,"2012-13",2013,"dms_y7",{"$f":"IFERROR(INDEX(INDIRECT(dms_RPT),dms_CRY_start_row+6),0)","v":"2026-27"}]
[null,"2013-14",2014,"dms_y8",{"$f":"IFERROR(INDEX(INDIRECT(dms_RPT),dms_CRY_start_row+7),0)","v":"2027-28"}]
[null,"2014-15",2015,"dms_y9",{"$f":"IFERROR(INDEX(INDIRECT(dms_RPT),dms_CRY_start_row+8),0)","v":"2028-29"}]
[null,"2015-16",2016,"dms_y10",{"$f":"IFERROR(INDEX(INDIRECT(dms_RPT),dms_CRY_start_row+9),0)","v":"2029-30"}]
[null,"2016-17",2017,"dms_y11",{"$f":"IFERROR(INDEX(INDIRECT(dms_RPT),dms_CRY_start_row+10),0)","v":"2030-31"}]
[null,"2017-18",2018,"dms_y12",{"$f":"IFERROR(INDEX(INDIRECT(dms_RPT),dms_CRY_start_row+11),0)","v":"2031-32"}]
[null,"2018-19",2019,"dms_y13",{"$f":"IFERROR(INDEX(INDIRECT(dms_RPT),dms_CRY_start_row+12),0)","v":"2032-33"}]
[null,"2019-20",2020,"dms_y14",{"$f":"IFERROR(INDEX(INDIRECT(dms_RPT),dms_CRY_start_row+13),0)","v":"2033-34"}]
[null,"2020-21",2021,"dms_y15",{"$f":"IFERROR(INDEX(INDIRECT(dms_RPT),dms_CRY_start_row+14),0)","v":"2034-35"}]
[null,"2021-22",2022,"dms_y16",{"$f":"IFERROR(INDEX(INDIRECT(dms_RPT),dms_CRY_start_row+15),0)","v":"2035-36"}]
[null,"2022-23",2023]
[null,"2023-24",2024]
[null,"2024-25",2025]
[null,"2025-26",2026]
[null,"2026-27",2027]
[null,"2027-28",2028]
[null,"2028-29",2029]
[null,"2029-30",2030]
[null,"2030-31",2031]
[null,"2031-32",2032]
[null,"2032-33",2033]
[null,"2033-34",2034]
[null,"2034-35",2035]
[null,"2035-36",2036]
[null,"2036-37","2037"]

{"sheet":"AER ETL","index":4,"n_rows":145,"n_cols":8,"rows_kept":145,"cut":false,"hidden":true,"merged":[[12,4,12,8],[71,1,73,1],[11,0,15,0],[18,0,25,0],[26,0,31,0],[34,0,59,0],[14,2,14,4],[32,37,32,58],[33,37,33,58],[34,37,34,58],[32,68,32,89],[33,68,33,89],[34,68,34,89]]}
[null,"AER ETL INFORMATION"]
[]
[null,"USES NAMED RANGES FLAG","yes","dms_Defined_Names_Used"]
[]
[null,"IF THIS IS AN ABC RIN - make sure the the named range CRY is applied and the named range dms_dollar_nom_UOM is applied"]
[null,"IF THIS IS A RESET RIN - make sure the named ranges CRY and dms_dollar_nom_UOM are NOT present in the workbook"]
[null,"FOR ABC RINS THAT SPAN MULTIPLE YEARS - make sure MultiYear Flag is set and final year entered as required"]
[]
[null,"Full trading name",{"$f":"INDEX(dms_TradingNameFull_List,MATCH(dms_TradingName,dms_TradingName_List))","v":"Queensland Electricity Transmission Corporation Limited trading as Powerlink Queensland"},null,"dms_TradingNameFull"]
[null,"Trading name",{"$f":"dms_TradingName","v":"Powerlink"}]
["Selected here","Model / RIN","Reset","dms_Model"]
["Read from Business & other details","Source","Regulatory proposal","dms_Source"]
[null,"Data quality","Consolidated","For DB purposes this is always Consoldiated"]
[null,"Data status","Public","For DB purposes this is always Public"]
[null,"Amendment reason",{"$f":"dms_Amendment_Text","v":"."},null,null,"dms_AmendmentReason"]
[null,"Submission date",{"$f":"dms_Typed_Submission_Date","v":"2021-01-28"},"dms_SubmissionDate"]
[]
["Redundant","EBSS - First application of scheme in forthcoming period?","No"]
["Pre-populated from lookup table","Data ingestion data quality","Consolidated","dms_DataQuality","Always Consolidated"]
[null,"Sector",{"$f":"INDEX(dms_Sector_List,MATCH(dms_TradingName,dms_TradingName_List))","v":"Electricity"},"dms_Sector","=INDEX(dms_Sector_List,MATCH(dms_TradingName,dms_TradingName_List))"]
[null,"Segment",{"$f":"INDEX(dms_Segment_List,MATCH(dms_TradingName,dms_TradingName_List))","v":"Transmission"},"dms_Segment","=INDEX(dms_Segment_List,MATCH(dms_TradingName,dms_TradingName_List))"]
[null,"Regulatory Year Ending",{"$f":"dms_RYE_result","v":"2027"},"dms_RYE","=IF(dms_MultiYear_Flag=1,LEFT(dms_Specified_FinalYear,2)&RIGHT(dms_Specified_FinalYear,2),INDEX(dms_RYE_Formula_Result,MATCH(dms_Model,dms_Model_List)))"]
[null,"Reporting Period Type",{"$f":"INDEX(dms_RPT_List,MATCH(dms_TradingName,dms_TradingName_List))","v":"Financial"},"dms_RPT","=INDEX(dms_RPT_List,MATCH(dms_TradingName,dms_TradingName_List))"]
[null,"EB/CA Unit of Measure for Monetary Values","$0s","dms_dollar_nom_UOM","If the cover sheet is attached to an ABC RIN apply the NAMED RANGE to the cell"]
[null,"Security Classification","Public","dms_Classification","Always Public"]
[null,"Jurisdiction",{"$f":"INDEX(dms_JurisdictionList,MATCH(dms_TradingName,dms_TradingName_List))","v":"Qld"},"dms_Jurisdiction","=INDEX(dms_JurisdictionList,MATCH(dms_TradingName,dms_TradingName_List))"]
["Relevant for PTRM, RFMs and Reset RINS","$ REAL REFERENCES"]
[null,"Does the named range CRY exist in this file? ",{"$f":"IFERROR(CRY,\"NO\")","v":"2020-21"}]
[null,"CRY-1  (last full calendar year before CRY)",{"$f":"IFERROR(IF(dms_RPT=\"calendar\",CRY-1,LEFT(CRY,4)),\"CRY not present\")","v":"2020"},"dms_Cal_Year_B4_CRY","'=IF(dms_RPT=\"financial\",VALUE(LEFT(dms_SingleYear_FinalYear_Result,4)),VALUE(LEFT(dms_SingleYear_FinalYear_Result,4)-1))"]
[null,"Dollar $ real month",{"$f":"INDEX(dms_RPTMonth_List,MATCH(dms_TradingName,dms_TradingName_List))","v":"June"},"dms_RPTMonth","=INDEX(dms_RPTMonth_List,MATCH(dms_TradingName,dms_TradingName_List))"]
[null,"Dollar $ real  (the last month before the FRCP_y1)",{"$f":"IF(dms_Model=\"RFM\",dms_DollarReal_Prev, IF(dms_SingleYearModel=\"yes\",CONCATENATE(dms_RPTMonth)&\" \"&VALUE((LEFT(dms_CRY_start_year,2)&RIGHT(dms_CRY_start_year,2))),CONCATENATE(dms_RPTMonth)&\" \"&dms_DollarReal_year))","v":"June 2022"},"dms_DollarReal","=IF(dms_Model=\"RFM\",dms_DollarReal_Prev, IF(dms_SingleYearModel=\"yes\",CONCATENATE(dms_RPTMonth)&\" \"&VALUE((LEFT(dms_CRY_start_year,2)&RIGHT(dms_CRY_start_year,2))),CONCATENATE(dms_RPTMonth)&\" \"&dms_DollarReal_year))"]
[null,"Dollar $ real previous year (PRCP_y5)",{"$f":"CONCATENATE(dms_RPTMonth)&\" \"&dms_Previous_DollarReal_year","v":"June 2017"},"dms_DollarReal_Prev","=IF(SUM(dms_SingleYear_Model)>0,CONCATENATE(dms_RPTMonth)&\" \"&VALUE(((LEFT(CRY,2))&RIGHT(CRY,2))-1),CONCATENATE(dms_RPTMonth)&\" \"&VALUE(((LEFT(dms_CRCP_FirstYear_Result,2)&RIGHT(dms_CRCP_FirstYear_Result,2))))-1)"]
[null,"PTRM/ RFMs"]
[null,"Form of control",{"$f":"INDEX(dms_FormControl_List,MATCH(dms_TradingName,dms_TradingName_List))","v":"Revenue cap"},"dms_FormControl","=INDEX(dms_FormControl_List,MATCH(dms_TradingName,dms_TradingName_List))"]
["All potential values for Regulatory Years or RYEs as calculated","This block works out the various RYE's for ALL RIN types and MODELS"]
[null,"dms_start_year",{"$f":"FRCP_y1","v":"2022-23"},"=FRCP_y1","FRCP_y1 from cover sheet"]
[null,"dms_CRY_start_year",{"$f":"IFERROR(CRY,CRCP_y4)","v":"2020-21"},"=IFERROR(CRY,CRCP_y4)"]
[null,"dms_CRY_start_row",{"$f":"IFERROR(MATCH(dms_CRY_start_year,INDIRECT(dms_RPT),0),0)","v":34},"=IFERROR(MATCH(dms_CRY_start_year,INDIRECT(dms_RPT),0),0)"]
[null,"dms_FRCP_start_row",{"$f":"MATCH(dms_start_year,INDIRECT(dms_RPT),0)","v":36},"=MATCH(dms_start_year,INDIRECT(dms_RPT),0)","Uses FRCP_y1 as a start reference"]
[null,"dms_CRCP_start_row",{"$f":"dms_FRCP_start_row-dms_CRCPlength_Num","v":31},"=dms_FRCP_start_row-dms_CRCPlength_Num","Uses the value in dms_CRCPlength_Num"]
[null,"dms_PRCP_start_row",{"$f":"dms_FRCP_start_row-dms_CRCPlength_Num-dms_PRCPlength_Num","v":26},"=dms_FRCP_start_row-dms_CRCPlength_Num-dms_PRCPlength_Num","Uses the value in dms_CRCPlength_Num and dms_PRCPlength_Num"]
[null,"dms_RYE_start_row",{"$f":"dms_FRCP_start_row+(dms_FRCPlength_Num-1)","v":40},"=dms_FRCP_start_row+(dms_FRCPlength_Num-1)","Uses the value in dms_FRCPlength_Num-1"]
[null,"FRCP_start_year",{"$f":"INDEX(INDIRECT(dms_RPT),dms_FRCP_start_row)","v":"2022-23"},"=INDEX(INDIRECT(dms_RPT),dms_FRCP_start_row)","Converts the FRCP start row to display the year"]
[null,"CRCP_start_year",{"$f":"INDEX(INDIRECT(dms_RPT),dms_CRCP_start_row)","v":"2017-18"},"=INDEX(INDIRECT(dms_RPT),dms_CRCP_start_row)","Converts the CRCP start row to display the year"]
[null,"PRCP_start_year",{"$f":"INDEX(INDIRECT(dms_RPT),dms_PRCP_start_row)","v":"2012-13"},"=INDEX(INDIRECT(dms_RPT),dms_PRCP_start_row)","Converts the PRCP start row to display the year"]
[null,"FRCP_final_year",{"$f":"INDEX(INDIRECT(dms_RPT),dms_FRCP_start_row+dms_FRCPlength_Num-1)","v":"2026-27"},"=INDEX(INDIRECT(dms_RPT),dms_FRCP_start_row+dms_FRCPlength_Num-1)","Finds the FRCP final year"]
[null,"CRCP_final_year",{"$f":"INDEX(INDIRECT(dms_RPT),dms_CRCP_start_row+dms_CRCPlength_Num-1)","v":"2021-22"},"=INDEX(INDIRECT(dms_RPT),dms_CRCP_start_row+dms_CRCPlength_Num-1)","Finds the CRCP final year"]
[null,"PRCP_final_year",{"$f":"INDEX(INDIRECT(dms_RPT),dms_PRCP_start_row+dms_FRCPlength_Num-1)","v":"2016-17"},"=INDEX(INDIRECT(dms_RPT),dms_PRCP_start_row+dms_FRCPlength_Num-1)","Finds the PRCP final year"]
[null,"dms_Reset_final_year",{"$f":"INDEX(INDIRECT(dms_RPT),dms_RYE_start_row)","v":"2026-27"},"=INDEX(INDIRECT(dms_RPT),dms_RYE_start_row)","For Resets and PTRM/RFMs (same as FRCP_final_year)"]
[null,"dms_SpecifiedYear_final_year",{"$f":"FRY","v":"2020-21"},"=FRY","FRY from cover sheet"]
[null,"dms_DollarReal_year",{"$f":"LEFT(CRCP_final_year,2)&RIGHT(CRCP_final_year,2)","v":"2022"},"=LEFT(CRCP_final_year,2)&RIGHT(CRCP_final_year,2)","Uses the value in CRCP_final_year"]
[null,"dms_Previous_DollarReal_year",{"$f":"LEFT(PRCP_final_year,2)&RIGHT(PRCP_final_year,2)","v":"2017"},"=LEFT(PRCP_final_year,2)&RIGHT(PRCP_final_year,2)","Uses the value in PRCP_final_year"]
[null,"dms_CRY_RYE",{"$f":"IFERROR(LEFT(CRY,2)&RIGHT(CRY,2),0)","v":"2021"},"=IFERROR(LEFT(CRY,2)&RIGHT(CRY,2),0)","For ABC single year RINS"]
[null,"dms_Reset_RYE",{"$f":"IF(dms_Model_Span>1,IF(dms_Model=\"RFM\",(LEFT(dms_DollarReal_year,2)&RIGHT(dms_DollarReal_year,2)),(LEFT(dms_Reset_final_year,2)&RIGHT(dms_Reset_final_year,2))),0)","v":"2027"},"=IF(dms_Model_Span>1,IF(dms_Model=\"RFM\",(LEFT(dms_DollarReal_year,2)&RIGHT(dms_DollarReal_year,2)),(LEFT(dms_Reset_final_year,2)&RIGHT(dms_Reset_final_year,2))),0)","If model span > 1 then uses dms_Reset_RYE otherwise it's a multi year ABC and uses dms_Specified_RYE"]
[null,"dms_Specified_RYE",{"$f":"IF(dms_MultiYear_ResponseFlag=\"Yes\",(LEFT(dms_Specified_FinalYear,2)&RIGHT(dms_Specified_FinalYear,2)),0)","v":0},"=IF(dms_MultiYear_ResponseFlag=\"Yes\",(LEFT(dms_Specified_FinalYear,2)&RIGHT(dms_Specified_FinalYear,2)),0)","If multi year ABC - uses dms_Specified_FinalYear"]
[null,"dms_Model_Span",{"$f":"INDEX(dms_Model_Span_List,MATCH(dms_Model,dms_Model_List))","v":5},"=INDEX(dms_Model_Span_List,MATCH(dms_Model,dms_Model_List))","A result of 5 is used to signify that it is more than 1 year span"]
[null,"dms_RYE_result",{"$f":"IF(dms_MultiYear_ResponseFlag=\"yes\",dms_Specified_RYE,(IF(dms_Model_Span>1,dms_Reset_RYE,dms_CRY_RYE)))","v":"2027"},"=IF(dms_MultiYear_ResponseFlag=\"yes\",dms_Specified_RYE,(IF(dms_Model_Span>1,dms_Reset_RYE,dms_CRY_RYE)))","Nested IF - feeds into dms_RYE"]
[null,"dms_Reset_Span",{"$f":"IF(dms_Reset_RYE>0,CONCATENATE(FRCP_y1,\" to \",FRCP_final_year),0)","v":"2022-23 to 2026-27"},"=IF(dms_Reset_RYE>0,CONCATENATE(FRCP_y1,\" to \",FRCP_final_year),0)","Reset span of years as text"]
[null,"dms_SpecifiedYear_Span",{"$f":"IF(dms_Specified_RYE>0,CONCATENATE(CRY,\" to \",dms_Specified_FinalYear),0)","v":0},"=IF(dms_Specified_RYE>0,CONCATENATE(CRY,\" to \",dms_Specified_FinalYear),0)","Multi year ABC span of years as text"]
[null,"dms_Header_Span",{"$f":"IF(dms_MultiYear_Flag=1,dms_SpecifiedYear_Span,IF(dms_Model_Span>1,dms_y1&\" - \"&FRCP_final_year,CRY))","v":"2020-21 - 2026-27"},"=IF(dms_MultiYear_Flag=1,dms_SpecifiedYear_Span,IF(dms_Model_Span>1,dms_Reset_Span,CRY))","NESTED IF - for Sheet Headers"]
[null,"ABC RINS THAT SPAN MULTIPLE YEARS"]
[null,"This is a multi year ABC RIN?","No"]
[null,null,{"$f":"IF(dms_MultiYear_ResponseFlag=\"No\",0,1)","v":0},"dms_MultiYear_Flag","This is set from the answer provided above"]
[null,null,{"$f":"IF(dms_MultiYear_Flag=1,FRY,\"not a Multiple year submission\")","v":"not a Multiple year submission"},"dms_Specified_FinalYear","The result here is returned to dms_CRCP_FinalYear_Result if response to Q in C73 is \"yes\" and dms_MultiYear_Flag is set to 1"]
[null," Start year for 5.2 in Multi year ABC RINS",{"$f":"IFERROR(IF(dms_MultiYear_Flag=1,FRY,CRY),\"not an ABC\")","v":"2020-21"},"dms_0502_Inst_Year","=IF(dms_MultiYear_Flag=1,FRY,CRY)",null,"For single year RINS this is CRY - multi year RINS need to start a the end of the span of years (ie. FRY)"]
[null,"WHAT IS THE RYE?"]
[null,"Reg Period Lengths"]
[null,"PRCP length in years",{"$f":"INDEX(dms_PRCPlength_List,MATCH(dms_TradingName,dms_TradingName_List))","v":5},"dms_PRCPlength_Num","=INDEX(dms_PRCPlength_List,MATCH(dms_TradingName,dms_TradingName_List))"]
[null,"CRCP length in years",{"$f":"INDEX(dms_CRCPlength_List,MATCH(dms_TradingName,dms_TradingName_List))","v":5},"dms_CRCPlength_Num","=INDEX(dms_CRCPlength_List,MATCH(dms_TradingName,dms_TradingName_List))"]
[null,"FRCP length in years",{"$f":"INDEX(dms_FRCPlength_List,MATCH(dms_TradingName,dms_TradingName_List))","v":5},"dms_FRCPlength_Num","=INDEX(dms_FRCPlength_List,MATCH(dms_TradingName,dms_TradingName_List))"]
[null,"Single year RIN?"]
[null,"Single Year ABC RIN ?",{"$f":"IF(dms_Model=\"EB\",1,0)","v":0},"dms_EB"]
[null,null,{"$f":"IF(dms_Model=\"CA\",1,0)","v":0},"dms_CA","=dms_SingleYear_Model"]
[null,null,{"$f":"IF(dms_Model=\"ARR\",1,0)","v":0},"dms_ARR"]
[null,"Is this a single Year ABC RIN?",{"$f":"IF(SUM(dms_SingleYear_Model)=1,\"yes\",\"no\")","v":"no"},"dms_SingleYearModel","=IF(SUM(dms_SingleYear_Model)=1,\"yes\",\"no\")"]
[null,"Single Year Final Year Result",{"$f":"IF(AND(dms_SingleYearModel=\"yes\",dms_MultiYear_Flag=0),CRY,0)","v":0},"dms_SingleYear_FinalYear_Result","=IFERROR(IF(SUM(dms_SingleYear_Model)<>0,(INDIRECT(dms_SingleYear_FinalYear_Ref)),\"not a single year RIN\"),\"CRY not present\")"]
[null,"Multi year RIN?"]
[]
[null,"Multi Year Reset/Model?",{"$f":"IF(dms_Model_Span>1,\"yes\",\"no\")","v":"yes"}]
[null,"Final year result for Reset/Model",{"$f":"IF(dms_Model_Span>1,dms_Reset_final_year,0)","v":"2026-27"},"dms_MultiYear_FinalYear_Result","dms_CRCP_FinalYear_Result"]
[]
[null,"Multi Year ABC RIN?",{"$f":"IF(dms_MultiYear_Flag=1,\"yes\",\"no\")","v":"no"},"dms_MultiYear_ABC_RIN"]
[null,"Final year result for ABC multi year",{"$f":"IF(dms_MultiYear_Flag=1,C50,0)","v":0}]
[]
[null,"EB RINS"]
[null,"Calendar Year for table 3.6 data",{"$f":"IFERROR(IF(dms_Segment=\"Transmission\",dms_Cal_Year_B4_CRY,CRY),\"CRY not present\")","v":"2020"},"dms_0306_Year","=IF(dms_Segment=\"Transmission\",dms_Cal_Year_B4_CRY,CRY)"]
[null,"CA RINS"]
[null,"Find how many rows in tables 6.3 sustained interruptions?",null,null,"dms_060301_MaxRows only returns a valid value when cover sheet is attached to a CA file"]
[null,null,{"$f":"IF(dms_Model<>\"CA\",\"not a CA\",\"Is a CA\")","v":"not a CA"},null,"=IF(dms_Model<>\"CA\",\"not a CA\",\"Is a CA\")"]
[null,"dms_060301_Avg_Duration_Sustained_Int_Values present?",{"$f":"IFERROR(IF(INDEX(dms_060301_Avg_Duration_Sustained_Int_Values,1,1)<>\"\",\"yes\",\"no\"),\"no\")","v":"no"},"dms_060301_checkvalue","=IFERROR(IF(INDEX(dms_060301_Avg_Duration_Sustained_Int_Values,1,1)<>\"\",\"yes\",\"no\"),\"no\")"]
[null,null,{"$f":"IF(AND(dms_Model=\"CA\",(dms_060301_checkvalue=\"no\")),\"error - NR not present\",\"no errors\")","v":"no errors"},null,"=IF(AND(dms_Model=\"CA\",(dms_060301_checkvalue=\"no\")),\"error - NR not present\",\"no errors\")"]
[null,"Table 6.3.1 - last row reference",{"$f":"IFERROR(IF(dms_Model=\"CA\",LOOKUP(2,1/(dms_060301_Avg_Duration_Sustained_Int_Values<>\"\"),(ROW(dms_060301_Avg_Duration_Sustained_Int_Values))),\"not a CA\"),\"6.3 not present\")","v":"not a CA"},"dms_060301_LastRow","=IFERROR(IF(dms_Model=\"CA\",LOOKUP(2,1/(dms_060301_Avg_Duration_Sustained_Int_Values<>\"\"),(ROW(dms_060301_Avg_Duration_Sustained_Int_Values))),\"not a CA\"),\"6.3 not present\")"]
[null,"Table 6.3.1 - max number rows",{"$f":"IFERROR(IF(dms_Model=\"CA\",(dms_060301_LastRow-15),\"not a CA\"),\"error\")","v":"not a CA"},"dms_060301_MaxRows","=IFERROR(IF(dms_Model=\"CA\",(dms_060301_LastRow-15),\"not a CA\"),\"error\")"]
[null,"Table 6.6.3 - Public lighting repair - no. business days",{"$f":"INDEX(dms_663_List,MATCH(dms_TradingName,dms_TradingName_List))","v":5},"dms_663","=INDEX(dms_663_List,MATCH(dms_TradingName,dms_TradingName_List))"]
[null,"ARR or RESET RINS"]
[null,"How many rows in tables 6.1 or 6.7?  (leap year?)","insert dms_LeapYear NR if required",null,"'dms_LeapYear is used to determine dms_060701_Max_Rows BUT it is only found on worksheet 6.1 or 6.7 and the date value in the cell is used to determine whether it is a leap year"]
[null,"Is dms_LeapYear named range present?",{"$f":"IFERROR(IF(dms_LeapYear,\"yes\"),\"no\")","v":"no"}]
[null,"Table 6.7.1 - includes a leap year?",{"$f":"\nIFERROR(IF(MONTH(DATE(YEAR(dms_LeapYear),2,29))=2,\"is a leap year\",\"not a leap year\"),\n\"dms_LeapYear not present\")","v":"dms_LeapYear not present"},"dms_LeapYear_Result","=IFERROR(IF(MONTH(DATE(YEAR(dms_LeapYear),2,29))=2,\"is a leap year\",\"not a leap year\"),\"dms_LeapYear not present\")"]
[null,"MaxRows if Reset and leap year",{"$f":"IF(dms_LeapYear_Result=\"is a leap year\",1827,1826)","v":1826},"dms_060701_Reset_MaxRows","=IF(dms_LeapYear_Result=\"is a leap year\",1827,1826)",null,null,"number of days present in Reset RIN table"]
[null,"MaxRows if ARR and leap year",{"$f":"IF(dms_LeapYear_Result=\"is a leap year\",366,365)","v":365},"dms_060701_ARR_MaxRows","=IF(dms_LeapYear_Result=\"is a leap year\",366,365)",null,null,"number of days present in ARR RIN table"]
[null,"Table 6.7.1 - Max Rows (leap year/ non leap year)",{"$f":"IF(dms_Model=\"ARR\",dms_060701_ARR_MaxRows,IF(dms_Model=\"Reset\",dms_060701_Reset_MaxRows,\"not a relevant RIN type\"))","v":1826},"dms_060701_MaxRows","=IF(dms_Model=\"ARR\",dms_060701_ARR_MaxRows,IF(dms_Model=\"Reset\",dms_060701_Reset_MaxRows,\"not a relevant RIN type\"))"]
[null,"How many columns in 6.7?   (4 or 5 feeder categories)",{"$f":"IF(dms_FifthFeeder_flag_NSP=\"NO\",\"This NSP has only 4 feeder categories\",\"This NSP has 5 feeder categories\")","v":"This NSP has only 4 feeder categories"}]
[null,"Table 6.7.1 - Last column (# of feeder categories > 4)",{"$f":"IF(dms_FifthFeeder_flag_NSP=\"NO\",10,12)","v":10},"dms_060701_MaxCols","=IF(dms_FifthFeeder_flag_NSP=\"NO\",8,10)"]
[null,"Table 6.7.1 - Number of offset rows",{"$f":"IF(dms_Model=\"ARR\",15,9)","v":9},"dms_060701_OffsetRows","=IF(dms_Model=\"ARR\",15,9)"]
[null,"Start date for telephone answering in 6.1 or 6.7?",null,null,"Using 060101 as naming standard not 060701 for start dates"]
[null,"Table 6.1.1 and 6.7.1 - Start Date as Text",{"$f":"IF(dms_SingleYearModel=\"yes\",(CONCATENATE(IF(LEN(CRY)=4,\"1-Jan-\",\"1-Jul-\"),LEFT(CRY,4))),(CONCATENATE(IF(LEN(PRCP_y4)=4,\"1-Jan-\",\"1-Jul-\"),LEFT(PRCP_y4,4))))","v":"1-Jul-2015"},"dms_060101_StartDateTxt","=IF(SUM(dms_SingleYear_Model)>1,(CONCATENATE(IF(LEN(CRY)=4,\"1-Jan-\",\"1-Jul-\"),LEFT(CRY,4))),(CONCATENATE(IF(LEN(CRCP_y4)=4,\"1-Jan-\",\"1-Jul-\"),LEFT(CRCP_y4,4))))"]
[null,"Table 6.1.1 and 6.7.1 - Start Date as Date Value",{"$f":"DATEVALUE(dms_060701_StartDateTxt)","v":42186},"dms_060101_StartDateVal","=DATEVALUE(dms_060701_StartDateTxt)"]
[null,"ARRs"]
[null,"How many rows in table 6.8?","insert dms_060801_StartCell NR if required",null,"dms_060801_StartCell is only found on worksheet 6.8 and is used to determine the starting date for the date range"]
[null,"Is dms_060801_StartCell named range present?","yes",null,"=IFERROR(IF((ROW(dms_060801_StartCell)-1)=1,\"yes\",\"yes\"),\"no\")"]
[null,"Table 6.8 - Number of offset rows",12,"dms_0608_OffsetRows","=IFERROR(IF(dms_Model=\"ARR\",(ROW(dms_060801_StartCell)-1),\"not an ARR\"),\"6.8 error\")"]
[null,"Table 6.8 - Last row","0","dms_0608_LastRow","=IFERROR(IF(dms_060801_StartCell<>\"\",IF(dms_Model=\"ARR\",(LOOKUP(2,1/(dms_060801_01_Values<>\"\"),(ROW(dms_060801_01_Values)))),\"not an ARR\"),0),\"0\")"]
[null,"Table 6.8 - MaxRows",{"$f":"IFERROR(IF(dms_Model=\"ARR\",(MAX(0,dms_0608_LastRow-dms_0608_OffsetRows)),\"not an ARR\"),\"0\")","v":"not an ARR"},"dms_060801_MaxRows","=IFERROR(IF(dms_Model=\"ARR\",(MAX(0,dms_0608_LastRow-dms_0608_OffsetRows)),\"not an ARR\"),\"0\")"]
[null,"TNSP RESET RINS"]
[null,"Table 7.9.4 only appears in TNSPs Reset RIN"]
[null,"Table 7.9.4 - first year",{"$f":"LEFT(PRCP_y3,4)","v":"2014"},"dms_070904_Start_Year","=LEFT(PRCP_y3,4)"]
[]
[null,"MISC"]
[null,"Distribution Determination Reference",{"$f":"INDEX(dms_DeterminationRef_List,MATCH(dms_TradingName,dms_TradingName_List))","v":"transmission determination"},"dms_DeterminationRef"]
[null,"Public lighting NSP?",{"$f":"INDEX(dms_Public_Lighting_List,MATCH(dms_TradingName,dms_TradingName_List))","v":"NO"},"dms_Public_Lighting","=INDEX(dms_Public_Lighting_List,MATCH(dms_TradingName,dms_TradingName_List))"]
[null,"CBD Feeder for this business",{"$f":"INDEX(dms_CBD_flag,MATCH(dms_TradingName,dms_TradingName_List))","v":"NO"},"dms_CBD_flag_NSP"]
[null,"Urban Feeder for this business",{"$f":"INDEX(dms_Urban_flag,MATCH(dms_TradingName,dms_TradingName_List))","v":"NO"},"dms_Urban_flag_NSP"]
[null,"Short rural Feeder for this business",{"$f":"INDEX(dms_ShortRural_flag,MATCH(dms_TradingName,dms_TradingName_List))","v":"NO"},"dms_ShortRural_flag_NSP"]
[null,"Long rural Feeder for this business",{"$f":"INDEX(dms_LongRural_flag,MATCH(dms_TradingName,dms_TradingName_List))","v":"NO"},"dms_LongRural_flag_NSP"]
[null,"Fifth Feeder Category (eg. TasNetworks (D))",{"$f":"INDEX(dms_FeederType_5_flag,MATCH(dms_TradingName,dms_TradingName_List))","v":"NO"},"dms_FifthFeeder_flag_NSP","=INDEX(dms_FeederType_5_flag,MATCH(dms_TradingName,dms_TradingName_List))"]
[]
[null,"DISCARD FILES"]
[null,"discard this record?","NO","dms_DISCARD","If record is to be discarded from DB set this flag to YES"]
[]
[null,"SUBSET FILES"]
[null,"Is this Submission File a Subset File","NO","dms_Partial"]
[]
[]
[null,"REGULATORY YEARS FOR MULTI RYE SUBMISSIONS"]
[null,"Multiple RYE flag","NO","dms_Multi_RYE_flag"]
[null,null,"Manually specify RYE","Named ranges to apply"]
[null,null,2013,"dms_RYE_01"]
[null,null,2014,"dms_RYE_02"]
[null,null,2015,"dms_RYE_03"]
[null,null,2016,"dms_RYE_04"]
[null,null,2017,"dms_RYE_05"]
[null,null,2018,"dms_RYE_06"]
[null,null,2019,"dms_RYE_07"]
[null,null,2020,"dms_RYE_08"]
[null,null,2021,"dms_RYE_09"]

{"sheet":"Business & other details","index":5,"n_rows":74,"n_cols":79,"rows_kept":74,"cut":false,"hidden":false,"merged":[[22,21,22,35],[16,21,16,35],[16,37,16,48],[15,21,15,35],[15,37,15,58],[24,37,24,51],[25,60,25,66],[42,73,42,80],[32,21,32,35],[33,21,33,35],[33,60,33,66],[32,60,32,66],[25,21,25,35],[23,21,23,35],[25,49,25,51],[24,60,24,66],[41,25,41,34],[0,7,2,15],[6,21,6,75],[24,21,24,35],[42,37,42,44],[42,46,42,53],[42,55,42,62],[42,64,42,71],[3,21,3,57],[8,16,8,93],[22,68,22,89],[23,68,23,89],[25,68,25,71],[25,80,25,82],[24,68,24,82],[25,37,25,40],[22,37,22,58],[23,37,23,58],[31,21,31,35],[22,60,22,66],[23,60,23,66],[31,60,31,66],[31,37,31,58],[32,37,32,58],[33,37,33,58],[45,73,45,80],[45,64,45,71],[46,73,46,80],[45,55,45,62],[50,46,50,53],[46,46,46,53],[46,37,46,44],[50,37,50,44],[31,68,31,89],[32,68,32,89],[33,68,33,89],[43,64,43,71],[43,73,43,80],[41,73,41,80],[45,25,45,34],[41,37,41,44],[46,64,46,71],[46,55,46,62],[50,55,50,62],[47,73,47,80],[51,73,51,80],[51,64,51,71],[51,55,51,62],[45,46,45,53],[45,37,45,44],[49,37,49,44],[41,46,41,53],[49,55,49,62],[49,64,49,71],[41,55,41,62],[41,64,41,71],[47,46,47,53],[47,55,47,62],[47,64,47,71],[49,46,49,53],[43,37,43,44],[43,46,43,53],[43,55,43,62],[51,46,51,53],[51,37,51,44],[47,37,47,44],[73,25,73,34],[73,37,73,52],[55,25,55,34],[63,25,63,34],[65,25,65,34],[55,37,55,44],[61,25,61,34],[61,37,61,52],[63,37,63,52],[65,37,65,52],[67,37,67,52],[69,37,71,81],[67,25,67,34],[69,25,71,34],[49,73,49,80],[53,37,53,44],[53,25,53,34],[50,73,50,80],[50,64,50,71],[49,25,49,34]]}
[null,null,null,null,null,null,null,null,null,null,null,null,null,null,null,null,null,null,null,null,null,{"$f":"INDEX(dms_Worksheet_List,MATCH(dms_Model,dms_Model_List))","v":"REGULATORY REPORTING STATEMENT"}]
[null,null,null,null,null,null,null,null,null,null,null,null,null,null,null,null,null,null,null,null,null,{"$f":"INDEX(dms_TradingNameFull_List,MATCH(dms_TradingName,dms_TradingName_List))","v":"Queensland Electricity Transmission Corporation Limited trading as Powerlink Queensland"}]
[null,null,null,null,null,null,null,null,null,null,null,null,null,null,null,null,null,null,null,null,null,{"$f":"dms_Header_Span","v":"2020-21 - 2026-27"}]
[null,null,null,null,null,null,null,null,null,null,null,null,null,null,null,null,null,null,null,null,null,"BUSINESS & OTHER DETAILS"]
[]
[null,null,null,null,null,null,null,null,null,null,null,null,null,null,null,null,null,null,null,null,null,"INSTRUCTIONS"]
[null,null,null,null,null,null,null,null,null,null,null,null,null,null,null,null,null,null,null,null,null,"Complete the following business details regulatory template before entering data or values in any other regulatory template. This regulatory template is linked to other cells within the spreadsheet and automatically generates column headings and conditional formatting to distinguish business specific input and non-input cells. "]
[]
[null,null,null,null,null,null,null,null,null,null,null,null,null,null,null,null,"SUBMISSION PARTICULARS INPUT SHEET"]
[]
[]
[null,null,null,null,null,null,null,null,null,null,null,null,null,null,null,null,null,null,null,null,null,"ENTITY DETAILS"]
[]
[null,null,null,null,null,null,null,null,null,null,null,null,null,null,null,null,null,null,null,null,null,"Business Name"]
[]
[null,null,null,null,null,null,null,null,null,null,null,null,null,null,null,null,null,null,null,null,null,"Short name",null,null,null,null,null,null,null,null,null,null,null,null,null,null,null,"Powerlink"]
[null,null,null,null,null,null,null,null,null,null,null,null,null,null,null,null,null,null,null,null,null,"ACN/ABN",null,null,null,null,null,null,null,null,null,null,null,null,null,null,null,{"$f":"INDEX(dms_ABN_List,MATCH(dms_TradingName,dms_TradingName_List))","v":82078849233}]
[]
[]
[]
[null,null,null,null,null,null,null,null,null,null,null,null,null,null,null,null,null,null,null,null,null,"Business Address",null,null,null,null,null,null,null,null,null,null,null,null,null,null,null,null,null,null,null,null,null,null,null,null,null,null,null,null,null,null,null,null,null,null,null,null,null,null,null,null,null,null,null,null,null,null,"Postal Address"]
[]
[null,null,null,null,null,null,null,null,null,null,null,null,null,null,null,null,null,null,null,null,null,"Address 1",null,null,null,null,null,null,null,null,null,null,null,null,null,null,null,{"$f":"INDEX(dms_Addr1_List,MATCH(dms_TradingName,dms_TradingName_List))","v":"33 Harold St"},null,null,null,null,null,null,null,null,null,null,null,null,null,null,null,null,null,null,null,null,null,null,"Address 1",null,null,null,null,null,null,null,{"$f":"INDEX(dms_PAddr1_List,MATCH(dms_TradingName,dms_TradingName_List))","v":"PO Box 1193"}]
[null,null,null,null,null,null,null,null,null,null,null,null,null,null,null,null,null,null,null,null,null,"Address 2",null,null,null,null,null,null,null,null,null,null,null,null,null,null,null,{"$f":"IF(ISBLANK(INDEX(dms_Addr2_List,MATCH(dms_TradingName,dms_TradingName_List))),\"\",(INDEX(dms_Addr2_List,MATCH(dms_TradingName,dms_TradingName_List))))","v":""},null,null,null,null,null,null,null,null,null,null,null,null,null,null,null,null,null,null,null,null,null,null,"Address 2",null,null,null,null,null,null,null,{"$f":"IF(ISBLANK(INDEX(dms_PAddr2_List,MATCH(dms_TradingName,dms_TradingName_List))),\"\",(INDEX(dms_PAddr2_List,MATCH(dms_TradingName,dms_TradingName_List))))","v":""}]
[null,null,null,null,null,null,null,null,null,null,null,null,null,null,null,null,null,null,null,null,null,"Suburb",null,null,null,null,null,null,null,null,null,null,null,null,null,null,null,{"$f":"INDEX(dms_Suburb_List,MATCH(dms_TradingName,dms_TradingName_List))","v":"VIRGINIA"},null,null,null,null,null,null,null,null,null,null,null,null,null,null,null,null,null,null,null,null,null,null,"Suburb",null,null,null,null,null,null,null,{"$f":"INDEX(dms_PSuburb_List,MATCH(dms_TradingName,dms_TradingName_List))","v":"VIRGINIA"}]
[null,null,null,null,null,null,null,null,null,null,null,null,null,null,null,null,null,null,null,null,null,"State",null,null,null,null,null,null,null,null,null,null,null,null,null,null,null,{"$f":"INDEX(dms_State_List,MATCH(dms_TradingName,dms_TradingName_List))","v":"Qld"},null,null,null,null,null,null,null,null,null,"Post code",null,null,null,null,null,null,null,null,null,null,null,null,"State",null,null,null,null,null,null,null,{"$f":"INDEX(dms_PState_List,MATCH(dms_TradingName,dms_TradingName_List))","v":"QLD"},null,null,null,null,null,null,null,null,null,"Post code"]
[]
[null,null,null,null,null,null,null,null,null,null,null,null,null,null,null,null,null,null,null,null,null,null,null,null,null,null,null,null,null,null,null,null,null,null,null,null,null,null,null,null,null,null,null,null,null,null,null,null,null,null,null,null,"`"]
[]
[null,null,null,null,null,null,null,null,null,null,null,null,null,null,null,null,null,null,null,null,null,"Contact Names"]
[]
[null,null,null,null,null,null,null,null,null,null,null,null,null,null,null,null,null,null,null,null,null,"Name",null,null,null,null,null,null,null,null,null,null,null,null,null,null,null,"Matthew Myers",null,null,null,null,null,null,null,null,null,null,null,null,null,null,null,null,null,null,null,null,null,null,"Name",null,null,null,null,null,null,null,"-- enter name --"]
[null,null,null,null,null,null,null,null,null,null,null,null,null,null,null,null,null,null,null,null,null,"Phone",null,null,null,null,null,null,null,null,null,null,null,null,null,null,null,"07 3860 2074",null,null,null,null,null,null,null,null,null,null,null,null,null,null,null,null,null,null,null,null,null,null,"Phone",null,null,null,null,null,null,null,"-- enter phone number --"]
[null,null,null,null,null,null,null,null,null,null,null,null,null,null,null,null,null,null,null,null,null,"Email",null,null,null,null,null,null,null,null,null,null,null,null,null,null,null,"mmyers@powerlink.com.au",null,null,null,null,null,null,null,null,null,null,null,null,null,null,null,null,null,null,null,null,null,null,"Email",null,null,null,null,null,null,null,"-- enter email address --"]
[]
[]
[]
[]
[null,null,null,null,null,null,null,null,null,null,null,null,null,null,null,null,"REGULATORY CONTROL PERIODS"]
[]
[]
[null,null,null,null,null,null,null,null,null,null,null,null,null,null,null,null,null,null,null,null,null,null,null,null,null,"Forthcoming period",null,null,null,null,null,null,null,null,null,null,null,"2022-23",null,null,null,null,null,null,null,null,{"$f":"FRCP_y2","v":"2023-24"},null,null,null,null,null,null,null,null,{"$f":"FRCP_y3","v":"2024-25"},null,null,null,null,null,null,null,null,{"$f":"FRCP_y4","v":"2025-26"},null,null,null,null,null,null,null,null,{"$f":"FRCP_y5","v":"2026-27"}]
[null,null,null,null,null,null,null,null,null,null,null,null,null,null,null,null,null,null,null,null,null,null,null,null,null,null,null,null,null,null,null,null,null,null,null,null,null,{"$f":"FRCP_y6","v":"2027-28"},null,null,null,null,null,null,null,null,{"$f":"FRCP_y7","v":"2028-29"},null,null,null,null,null,null,null,null,{"$f":"FRCP_y8","v":"2029-30"},null,null,null,null,null,null,null,null,{"$f":"FRCP_y9","v":"2030-31"},null,null,null,null,null,null,null,null,{"$f":"FRCP_y10","v":"2031-32"}]
[null,null,null,null,null,null,null,null,null,null,null,null,null,null,null,null,null,null,null,null,null,null,null,null,null,null,null,null,null,null,null,null,null,null,null,null,null,{"$f":"FRCP_y11","v":"2032-33"},null,null,null,null,null,null,null,null,{"$f":"FRCP_y12","v":"2033-34"},null,null,null,null,null,null,null,null,{"$f":"FRCP_y13","v":"2034-35"},null,null,null,null,null,null,null,null,{"$f":"FRCP_y14","v":"2035-36"},null,null,null,null,null,null,null,null,{"$f":"FRCP_y15","v":"2036-37"}]
[]
[null,null,null,null,null,null,null,null,null,null,null,null,null,null,null,null,null,null,null,null,null,null,null,"RESETS",null,"Current period",null,null,null,null,null,null,null,null,null,null,null,{"$f":"CRCP_y1","v":"2017-18"},null,null,null,null,null,null,null,null,{"$f":"CRCP_y2","v":"2018-19"},null,null,null,null,null,null,null,null,{"$f":"CRCP_y3","v":"2019-20"},null,null,null,null,null,null,null,null,{"$f":"CRCP_y4","v":"2020-21"},null,null,null,null,null,null,null,null,{"$f":"CRCP_y5","v":"2021-22"}]
[null,null,null,null,null,null,null,null,null,null,null,null,null,null,null,null,null,null,null,null,null,null,null,null,null,null,null,null,null,null,null,null,null,null,null,null,null,{"$f":"CRCP_y6","v":"2022-23"},null,null,null,null,null,null,null,null,{"$f":"CRCP_y7","v":"2023-24"},null,null,null,null,null,null,null,null,{"$f":"CRCP_y8","v":"2024-25"},null,null,null,null,null,null,null,null,{"$f":"CRCP_y9","v":"2025-26"},null,null,null,null,null,null,null,null,{"$f":"CRCP_y10","v":"2026-27"}]
[null,null,null,null,null,null,null,null,null,null,null,null,null,null,null,null,null,null,null,null,null,null,null,null,null,null,null,null,null,null,null,null,null,null,null,null,null,{"$f":"CRCP_y11","v":"2027-28"},null,null,null,null,null,null,null,null,{"$f":"CRCP_y12","v":"2028-29"},null,null,null,null,null,null,null,null,{"$f":"CRCP_y13","v":"2029-30"},null,null,null,null,null,null,null,null,{"$f":"CRCP_y14","v":"2030-31"},null,null,null,null,null,null,null,null,{"$f":"CRCP_y15","v":"2031-32"}]
[]
[null,null,null,null,null,null,null,null,null,null,null,null,null,null,null,null,null,null,null,null,null,null,null,null,null,"Previous period",null,null,null,null,null,null,null,null,null,null,null,{"$f":"PRCP_y1","v":"2012-13"},null,null,null,null,null,null,null,null,{"$f":"PRCP_y2","v":"2013-14"},null,null,null,null,null,null,null,null,{"$f":"PRCP_y3","v":"2014-15"},null,null,null,null,null,null,null,null,{"$f":"PRCP_y4","v":"2015-16"},null,null,null,null,null,null,null,null,{"$f":"PRCP_y5","v":"2016-17"}]
[null,null,null,null,null,null,null,null,null,null,null,null,null,null,null,null,null,null,null,null,null,null,null,null,null,null,null,null,null,null,null,null,null,null,null,null,null,{"$f":"PRCP_y6","v":"2017-18"},null,null,null,null,null,null,null,null,{"$f":"PRCP_y7","v":"2018-19"},null,null,null,null,null,null,null,null,{"$f":"PRCP_y8","v":"2019-20"},null,null,null,null,null,null,null,null,{"$f":"PRCP_y9","v":"2020-21"},null,null,null,null,null,null,null,null,{"$f":"PRCP_y10","v":"2021-22"}]
[null,null,null,null,null,null,null,null,null,null,null,null,null,null,null,null,null,null,null,null,null,null,null,null,null,null,null,null,null,null,null,null,null,null,null,null,null,{"$f":"PRCP_y11","v":"2022-23"},null,null,null,null,null,null,null,null,{"$f":"PRCP_y12","v":"2023-24"},null,null,null,null,null,null,null,null,{"$f":"PRCP_y13","v":"2024-25"},null,null,null,null,null,null,null,null,{"$f":"PRCP_y14","v":"2025-26"},null,null,null,null,null,null,null,null,{"$f":"PRCP_y15","v":"2026-27"}]
[]
[null,null,null,null,null,null,null,null,null,null,null,null,null,null,null,null,null,null,null,null,null,null,null,null,null,"Commencing year",null,null,null,null,null,null,null,null,null,null,null,"2020-21"]
[null,null,null,null,null,null,null,null,null,null,null,null,null,null,null,null,null,null,null,null,null,null,null,"ANNUAL RINS"]
[null,null,null,null,null,null,null,null,null,null,null,null,null,null,null,null,null,null,null,null,null,null,null,null,null,"Final year",null,null,null,null,null,null,null,null,null,null,null,"2020-21"]
[]
[]
[]
[null,null,null,null,null,null,null,null,null,null,null,null,null,null,null,null,"SUBMISSION DETAILS"]
[]
[null,null,null,null,null,null,null,null,null,null,null,null,null,null,null,null,null,null,null,null,null,null,null,null,null,"RIN type",null,null,null,null,null,null,null,null,null,null,null,{"$f":"INDIRECT(dms_Model)","v":"Regulatory Reporting (Reset)"}]
[]
[null,null,null,null,null,null,null,null,null,null,null,null,null,null,null,null,null,null,null,null,null,null,null,null,null,"Source",null,null,null,null,null,null,null,null,null,null,null,"Regulatory proposal"]
[]
[null,null,null,null,null,null,null,null,null,null,null,null,null,null,null,null,null,null,null,null,null,null,null,"THIS FILE",null,"Data Quality",null,null,null,null,null,null,null,null,null,null,null,"Consolidated"]
[]
[null,null,null,null,null,null,null,null,null,null,null,null,null,null,null,null,null,null,null,null,null,null,null,null,null,"Confidentiality Status",null,null,null,null,null,null,null,null,null,null,null,"Public"]
[]
[null,null,null,null,null,null,null,null,null,null,null,null,null,null,null,null,null,null,null,null,null,null,null,null,null,"Amended RIN \nAmendment Reason",null,null,null,null,null,null,null,null,null,null,null,"."]
[]
[]
[]
[null,null,null,null,null,null,null,null,null,null,null,null,null,null,null,null,null,null,null,null,null,null,null,null,null,"Submission Date",null,null,null,null,null,null,null,null,null,null,null,"2021-01-28",null,null,null,null,null,null,null,null,null,null,null,null,null,null,null,null,null,"Please enter date this file submitted to AER"]

{"sheet":"7.6 Indicative bill","index":6,"n_rows":78,"n_cols":12,"rows_kept":78,"cut":false,"hidden":false,"merged":[[6,1,6,3],[22,2,23,2],[75,3,75,8],[62,9,63,9],[62,10,63,10],[62,11,63,11],[63,3,63,8],[66,3,66,8],[71,9,72,9],[71,10,72,10],[71,11,72,11],[72,3,72,8]]}
[null,"REGULATORY REPORTING STATEMENT"]
[null,{"$f":"dms_TradingName","v":"Powerlink"}]
[null,"2022-23 to 2026-27"]
[null,"7.6 INDICATIVE IMPACT ON TRANSMISSION CHARGES & ELECTRICITY BILLS"]
[]
[null,"Instructions"]
[null,"Powerlink is required to populate all input cells (yellow) in table 7.6.1 presented below.\n\nSmall business customer is a business customer that consumes < 100 MWh p.a."]
[]
[null,"7.6.1 - INDICATIVE IMPACT OF THE REGULATORY PROPOSAL ON THE AVERAGE ELECTRICITY BILLS"]
[]
[null,"7.6.1.1 - PARAMETERS BY TARIFF TYPE"]
[null,null,null,"Single Rate Tariff"]
[null,"A. ANNUAL USAGE PER CUSTOMER"]
[null,null,null,"kWh"]
[null,null,null,{"$f":"CRCP_y5","v":"2021-22"}]
[null,"Residential customer",null,4061]
[null,"Small business customer",null,6831]
[null,null,"Source:","QCA Final Determination Regulated electricity prices for 2020-21 - June 2020"]
[]
[]
[null,"B. TYPICAL ANNUAL ELECTRICITY BILL"]
[null,null,null,"Single Rate Tariff"]
[null,null,"Tariff description",{"$f":"CONCATENATE(\"$ real, \",dms_DollarReal)","v":"$ real, June 2022"}]
[null,null,null,{"$f":"CRCP_y5","v":"2021-22"}]
[null,"Residential customer","Tariff 11 - Standard flat rate residential tariff in Queensland",1336]
[null,"Small business customer","Tariff 20 - Standard flat rate small business tariff in Queensland",2263]
[null,null,"Source:","QCA Final Determination Regulated electricity prices for 2020-21  - June 2020"]
[]
[]
[null,"C. TRANSMISSION COSTS AS A PROPORTION OF A TYPICAL CUSTOMER'S ELECTRICITY BILL"]
[null,null,null,"Single Rate Tariff"]
[null,null,null,"Proportion (%)"]
[null,null,null,{"$f":"CRCP_y5","v":"2021-22"}]
[null,"Residential customer",null,8.8700000000000001E-2]
[null,"Small business customer",null,8.8700000000000001E-2]
[null,null,"Source:","AEMC Final Report Residential Electricity Price Trends 2020   - December 2020"]
[]
[]
[null,"D. TRANSMISSION BILL COMPONENT"]
[null,null,null,"Single Rate Tariff"]
[null,null,null,{"$f":"CONCATENATE(\"$ real, \",dms_DollarReal)","v":"$ real, June 2022"}]
[null,null,null,{"$f":"CRCP_y5","v":"2021-22"}]
[null,"Residential customer",null,{"$f":"D34*D25","v":118.50320000000001}]
[null,"Small business customer",null,{"$f":"D35*D26","v":200.72810000000001}]
[]
[]
[null,"7.6.1.2 - INDICATIVE ANNUAL AVERAGE TRANSMISSION PRICE IMPACT"]
[null,null,"Units",{"$f":"CRCP_y5","v":"2021-22"},{"$f":"FRCP_y1","v":"2022-23"},{"$f":"FRCP_y2","v":"2023-24"},{"$f":"FRCP_y3","v":"2024-25"},{"$f":"FRCP_y4","v":"2025-26"},{"$f":"FRCP_y5","v":"2026-27"},"Average"]
[null,"Forecast smoothed revenues ($ nominal)","$ nominal",771675437,689657739.26308644,701146688.97588325,712827032.12630618,724701957.12137985,736774705.48353052]
[null,"Forecast smoothed revenues ($ real)",{"$f":"CONCATENATE(\"$ real , \",dms_DollarReal)","v":"$ real , June 2022"},771675437,674490411.65903974,670645816.31258333,666823135.15960157,663022243.28919172,659243016.50244343]
[]
[null,"Energy delivered forecast (MWh)","MWh",46078000,46382000,46611000,46258000,45811000,45335000]
[]
[null,"Annual price path ($ nominal)","$/MWh, nominal",{"$f":"+D49/D52","v":16.747155627414383},{"$f":"+E49/E52","v":14.869081524364763},15.042515478661329,15.409810889496004,15.81938742051865,16.251785717073574]
[null,"Annual price path ($ real)",{"$f":"CONCATENATE(\"$/MWh, \",dms_DollarReal)","v":"$/MWh, June 2022"},{"$f":"+D50/D52","v":16.747155627414383},{"$f":"+E50/E52","v":14.542072607025133},14.388144779399354,14.415304058964971,14.472992147938088,14.541590746717622]
[]
[null,"Annual price path (per cent, nominal)","per cent, nominal",null,{"$f":"+E54/D54-1","v":-0.11214287039736426},1.1664066406009921E-2,2.44171535908142E-2,2.6578945968884771E-2,2.7333441242742396E-2,{"$f":"(I54/D54)^(1/5)-1","v":-5.9871327686112918E-3}]
[null,"Annual price path (per cent, real)",{"$f":"CONCATENATE(\"per cent , \",dms_DollarReal)","v":"per cent , June 2022"},null,-0.13166910664994491,-1.0584999249104166E-2,1.8876151152233955E-3,4.0018641810917188E-3,4.7397661850667738E-3,{"$f":"(I55/D55)^(1/5)-1","v":-2.7848003663855425E-2}]
[]
[]
[null,"7.6.1.3 - TRANSMISSION BILL COMPONENT"]
[null,"Residential customer"]
[null,null,null,{"$f":"CRCP_y5","v":"2021-22"},{"$f":"FRCP_y1","v":"2022-23"},{"$f":"FRCP_y2","v":"2023-24"},{"$f":"FRCP_y3","v":"2024-25"},{"$f":"FRCP_y4","v":"2025-26"},{"$f":"FRCP_y5","v":"2026-27"},{"$f":"CONCATENATE(\"Total \",E63, \" to \",I63)","v":"Total 2022-23 to 2026-27"},"Annual average","Annual impact on customer bill (%)"]
[null,null,null,"$ nominal"]
[null,"Regulated tariff",null,{"$f":"D43","v":118.50320000000001},{"$f":"+D65*(1+E$57)","v":105.21391100072707},{"$f":"+E65*(1+F$57)","v":106.44113304547557},{"$f":"+F65*(1+G$57)","v":109.04012253942723},{"$f":"+G65*(1+H$57)","v":111.93829406484325},{"$f":"+H65*(1+I$57)","v":114.99795284847747},{"$f":"+SUM(E65:I65)","v":547.63141349895056},{"$f":"+AVERAGE(E65:I65)","v":109.52628269979012}]
[null,"Annual change",null,null,{"$f":"+E65-D65","v":-13.289288999272941},{"$f":"+F65-E65","v":1.2272220447485012},{"$f":"+G65-F65","v":2.5989894939516631},{"$f":"+H65-G65","v":2.8981715254160179},{"$f":"+I65-H65","v":3.0596587836342195},{"$f":"+SUM(E66:I66)","v":-3.5052471515225392},{"$f":"+AVERAGE(E66:I66)","v":-0.70104943030450784},{"$f":"+K66/D25","v":-5.2473759753331422E-4}]
[null,null,null,{"$f":"CONCATENATE(\"$ real, \",dms_DollarReal)","v":"$ real, June 2022"}]
[null,"Regulated tariff",null,{"$f":"D43","v":118.50320000000001},{"$f":"+D68*(1+E$58)","v":102.89998952084025},{"$f":"+E68*(1+F$58)","v":101.81079320902933},102.00297280118357,102.4111748444015,102.89657986790196,{"$f":"+SUM(E68:I68)","v":512.0215102433566},{"$f":"+AVERAGE(E68:I68)","v":102.40430204867133}]
[null,"Annual change",null,null,{"$f":"+E68-D68","v":-15.603210479159756},{"$f":"+F68-E68","v":-1.0891963118109231},0.19217959215424685,0.4082020432179263,0.48540502350046211,{"$f":"+SUM(E69:I69)","v":-15.606620132098044},{"$f":"+AVERAGE(E69:I69)","v":-3.1213240264196087},{"$f":"+K69/D25","v":-2.3363203790565932E-3}]
[]
[null,"Small Business customer"]
[null,null,null,{"$f":"CRCP_y5","v":"2021-22"},{"$f":"FRCP_y1","v":"2022-23"},{"$f":"FRCP_y2","v":"2023-24"},{"$f":"FRCP_y3","v":"2024-25"},{"$f":"FRCP_y4","v":"2025-26"},{"$f":"FRCP_y5","v":"2026-27"},{"$f":"CONCATENATE(\"Total \",E72, \" to \",I72)","v":"Total 2022-23 to 2026-27"},"Annual average","Annual impact on customer bill (%)"]
[null,null,null,"$ nominal"]
[null,"Regulated tariff",null,{"$f":"D44","v":200.72810000000001},{"$f":"+D74*(1+E$57)","v":178.21787469659083},{"$f":"+E74*(1+F$57)","v":180.29661982178982},{"$f":"+F74*(1+G$57)","v":184.6989500798831},{"$f":"+G74*(1+H$57)","v":189.60805349456606},{"$f":"+H74*(1+I$57)","v":194.79069408391055},{"$f":"+SUM(E74:I74)","v":927.61219217674045},{"$f":"+AVERAGE(E74:I74)","v":185.52243843534808}]
[null,"Annual change",null,null,{"$f":"+E74-D74","v":-22.510225303409186},{"$f":"+F74-E74","v":2.0787451251989921},{"$f":"+G74-F74","v":4.4023302580932864},{"$f":"+H74-G74","v":4.90910341468296},{"$f":"+I74-H74","v":5.1826405893444871},{"$f":"+SUM(E75:I75)","v":-5.9374059160894603},{"$f":"+AVERAGE(E75:I75)","v":-1.187481183217892},{"$f":"+K75/D26","v":-5.2473759753331509E-4}]
[null,null,null,{"$f":"CONCATENATE(\"$ real, \",dms_DollarReal)","v":"$ real, June 2022"}]
[null,"Regulated tariff",null,{"$f":"D44","v":200.72810000000001},{"$f":"+D77*(1+E$58)","v":174.29841039345919},{"$f":"+E77*(1+F$58)","v":172.45346185032437},172.77898761158565,173.47042565335374,174.29263491097464,{"$f":"+SUM(E77:I77)","v":867.29392041969754},{"$f":"+AVERAGE(E77:I77)","v":173.45878408393952}]
[null,"Annual change",null,null,{"$f":"+E77-D77","v":-26.429689606540819},{"$f":"+F77-E77","v":-1.8449485431348194},0.32552576126127519,0.69143804176809454,0.82220925762089792,{"$f":"+SUM(E78:I78)","v":-26.435465089025371},{"$f":"+AVERAGE(E78:I78)","v":-5.2870930178050743},{"$f":"+K78/D26","v":-2.3363203790565949E-3}]

{"sheet":"OLD","index":7,"n_rows":78,"n_cols":12,"rows_kept":78,"cut":false,"hidden":true,"merged":[[62,11,63,11],[63,3,63,8],[75,3,75,8],[6,1,6,3],[22,2,23,2],[62,9,63,9],[62,10,63,10],[66,3,66,8],[71,9,72,9],[71,10,72,10],[71,11,72,11],[72,3,72,8]]}
[null,"REGULATORY REPORTING STATEMENT"]
[null,{"$f":"dms_TradingName","v":"Powerlink"}]
[null,"2022-23 to 2026-27"]
[null,"7.6 INDICATIVE IMPACT ON TRANSMISSION CHARGES & ELECTRICITY BILLS"]
[]
[null,"Instructions"]
[null,"Powerlink is required to populate all input cells (yellow) in table 7.6.1 presented below.\n\nSmall business customer is a business customer that consumes < 100 MWh p.a."]
[]
[null,"7.6.1 - INDICATIVE IMPACT OF THE REGULATORY PROPOSAL ON THE AVERAGE ELECTRICITY BILLS"]
[]
[null,"7.6.1.1 - PARAMETERS BY TARIFF TYPE"]
[null,null,null,"Single Rate Tariff"]
[null,"A. ANNUAL USAGE PER CUSTOMER"]
[null,null,null,"kWh"]
[null,null,null,{"$f":"CRCP_y5","v":"2021-22"}]
[null,"Residential customer",null,4061]
[null,"Small business customer",null,6831]
[null,null,"Source:","QCA Final Determination Regulated electricity prices for 2020-21 - June 2020"]
[]
[]
[null,"B. TYPICAL ANNUAL ELECTRICITY BILL"]
[null,null,null,"Single Rate Tariff"]
[null,null,"Tariff description",{"$f":"CONCATENATE(\"$ real, \",dms_DollarReal)","v":"$ real, June 2022"}]
[null,null,null,{"$f":"CRCP_y5","v":"2021-22"}]
[null,"Residential customer","Tariff 11 - Standard flat rate residential tariff in Queensland",1336]
[null,"Small business customer","Tariff 20 - Standard flat rate small business tariff in Queensland",2263]
[null,null,"Source:","QCA Final Determination Regulated electricity prices for 2020-21  - June 2020"]
[]
[]
[null,"C. TRANSMISSION COSTS AS A PROPORTION OF A TYPICAL CUSTOMER'S ELECTRICITY BILL"]
[null,null,null,"Single Rate Tariff"]
[null,null,null,"Proportion (%)"]
[null,null,null,{"$f":"CRCP_y5","v":"2021-22"}]
[null,"Residential customer",null,8.8700000000000001E-2]
[null,"Small business customer",null,8.8700000000000001E-2]
[null,null,"Source:","AEMC Final Report Residential Electricity Price Trends 2020   - December 2020"]
[]
[]
[null,"D. TRANSMISSION BILL COMPONENT"]
[null,null,null,"Single Rate Tariff"]
[null,null,null,{"$f":"CONCATENATE(\"$ real, \",dms_DollarReal)","v":"$ real, June 2022"}]
[null,null,null,{"$f":"CRCP_y5","v":"2021-22"}]
[null,"Residential customer",null,{"$f":"D34*D25","v":118.50320000000001}]
[null,"Small business customer",null,{"$f":"D35*D26","v":200.72810000000001}]
[]
[]
[null,"7.6.1.2 - INDICATIVE ANNUAL AVERAGE TRANSMISSION PRICE IMPACT"]
[null,null,"Units",{"$f":"CRCP_y5","v":"2021-22"},{"$f":"FRCP_y1","v":"2022-23"},{"$f":"FRCP_y2","v":"2023-24"},{"$f":"FRCP_y3","v":"2024-25"},{"$f":"FRCP_y4","v":"2025-26"},{"$f":"FRCP_y5","v":"2026-27"},"Average"]
[null,"Forecast smoothed revenues ($ nominal)","$ nominal",771675437,681946147.02107656,697281132.42842233,712960957.05580151,728993375.33430827,745386316.06963873]
[null,"Forecast smoothed revenues ($ real)",{"$f":"CONCATENATE(\"$ real , \",dms_DollarReal)","v":"$ real , June 2022"},771675437,666948416.94233036,666948416.94233036,666948416.94233036,666948416.94233024,666948416.94233036]
[]
[null,"Energy delivered forecast (MWh)","MWh",46078000,46382000,46611000,46258000,45811000,45335000]
[]
[null,"Annual price path ($ nominal)","$/MWh, nominal",{"$f":"+D49/D52","v":16.747155627414383},{"$f":"+E49/E52","v":14.702818917275593},14.959583197709174,15.412706062860511,15.913064009393121,16.441740731656306]
[null,"Annual price path ($ real)",{"$f":"CONCATENATE(\"$/MWh, \",dms_DollarReal)","v":"$/MWh, June 2022"},{"$f":"+D50/D52","v":16.747155627414383},{"$f":"+E50/E52","v":14.379466537500116},14.308820169966967,14.418012385799869,14.558695879643103,14.711556566501166]
[]
[null,"Annual price path (per cent, nominal)","per cent, nominal",null,{"$f":"+E54/D54-1","v":-0.12207068206808191},1.7463608977179579E-2,3.0289805482062171E-2,3.2463990715965618E-2,3.3222811266963914E-2,{"$f":"(I54/D54)^(1/5)-1","v":-3.6742658289427022E-3}]
[null,"Annual price path (per cent, real)",{"$f":"CONCATENATE(\"per cent , \",dms_DollarReal)","v":"per cent , June 2022"},null,-0.14137858049389951,-4.9130033683036922E-3,7.6311124562238319E-3,9.7574818275083519E-3,1.0499613984780165E-2,{"$f":"(I55/D55)^(1/5)-1","v":-2.5586002550206488E-2}]
[]
[]
[null,"7.6.1.3 - TRANSMISSION BILL COMPONENT"]
[null,"Residential customer"]
[null,null,null,{"$f":"CRCP_y5","v":"2021-22"},{"$f":"FRCP_y1","v":"2022-23"},{"$f":"FRCP_y2","v":"2023-24"},{"$f":"FRCP_y3","v":"2024-25"},{"$f":"FRCP_y4","v":"2025-26"},{"$f":"FRCP_y5","v":"2026-27"},{"$f":"CONCATENATE(\"Total \",E63, \" to \",I63)","v":"Total 2022-23 to 2026-27"},"Annual average","Annual impact on customer bill (%)"]
[null,null,null,"$ nominal"]
[null,"Regulated tariff",null,{"$f":"D43","v":118.50320000000001},{"$f":"+D65*(1+E$57)","v":104.03743354874968},{"$f":"+E65*(1+F$57)","v":105.85430260723435},{"$f":"+F65*(1+G$57)","v":109.06060884264681},{"$f":"+G65*(1+H$57)","v":112.60115143559206},{"$f":"+H65*(1+I$57)","v":116.34207823817955},{"$f":"+SUM(E65:I65)","v":547.8955746724024},{"$f":"+AVERAGE(E65:I65)","v":109.57911493448049}]
[null,"Annual change",null,null,{"$f":"+E65-D65","v":-14.465766451250332},{"$f":"+F65-E65","v":1.8168690584846701},{"$f":"+G65-F65","v":3.2063062354124696},{"$f":"+H65-G65","v":3.5405425929452434},{"$f":"+I65-H65","v":3.7409268025874951},{"$f":"+SUM(E66:I66)","v":-2.1611217618204535},{"$f":"+AVERAGE(E66:I66)","v":-0.43222435236409068},{"$f":"+K66/D25","v":-3.2352122182940918E-4}]
[null,null,null,{"$f":"CONCATENATE(\"$ real, \",dms_DollarReal)","v":"$ real, June 2022"}]
[null,"Regulated tariff",null,{"$f":"D43","v":118.50320000000001},{"$f":"+D68*(1+E$58)","v":101.74938580001533},{"$f":"+E68*(1+F$58)","v":101.24949072485703},102.0221369747138,103.01761612224814,104.09926132516401,{"$f":"+SUM(E68:I68)","v":512.13789094699825},{"$f":"+AVERAGE(E68:I68)","v":102.42757818939965}]
[null,"Annual change",null,null,{"$f":"+E68-D68","v":-16.753814199984674},{"$f":"+F68-E68","v":-0.49989507515830667},0.77264624985677699,0.99547914753433986,1.0816452029158654,{"$f":"+SUM(E69:I69)","v":-14.403938674835999},{"$f":"+AVERAGE(E69:I69)","v":-2.8807877349671998},{"$f":"+K69/D25","v":-2.1562782447359279E-3}]
[]
[null,"Small Business customer"]
[null,null,null,{"$f":"CRCP_y5","v":"2021-22"},{"$f":"FRCP_y1","v":"2022-23"},{"$f":"FRCP_y2","v":"2023-24"},{"$f":"FRCP_y3","v":"2024-25"},{"$f":"FRCP_y4","v":"2025-26"},{"$f":"FRCP_y5","v":"2026-27"},{"$f":"CONCATENATE(\"Total \",E72, \" to \",I72)","v":"Total 2022-23 to 2026-27"},"Annual average","Annual impact on customer bill (%)"]
[null,null,null,"$ nominal"]
[null,"Regulated tariff",null,{"$f":"D44","v":200.72810000000001},{"$f":"+D74*(1+E$57)","v":176.22508392276987},{"$f":"+E74*(1+F$57)","v":179.30260988036778},{"$f":"+F74*(1+G$57)","v":184.73365105607022},{"$f":"+G74*(1+H$57)","v":190.7308425888809},{"$f":"+H74*(1+I$57)","v":197.06745737500029},{"$f":"+SUM(E74:I74)","v":928.059644823089},{"$f":"+AVERAGE(E74:I74)","v":185.61192896461779}]
[null,"Annual change",null,null,{"$f":"+E74-D74","v":-24.503016077230143},{"$f":"+F74-E74","v":3.0775259575979135},{"$f":"+G74-F74","v":5.4310411757024326},{"$f":"+H74-G74","v":5.9971915328106888},{"$f":"+I74-H74","v":6.3366147861193838},{"$f":"+SUM(E75:I75)","v":-3.6606426249997241},{"$f":"+AVERAGE(E75:I75)","v":-0.73212852499994485},{"$f":"+K75/D26","v":-3.235212218294056E-4}]
[null,null,null,{"$f":"CONCATENATE(\"$ real, \",dms_DollarReal)","v":"$ real, June 2022"}]
[null,"Regulated tariff",null,{"$f":"D44","v":200.72810000000001},{"$f":"+D77*(1+E$58)","v":172.3494461567625},{"$f":"+E77*(1+F$58)","v":171.50269274726904},172.81144908216865,174.4976536561733,176.32981166081299,{"$f":"+SUM(E77:I77)","v":867.4910533031865},{"$f":"+AVERAGE(E77:I77)","v":173.49821066063731}]
[null,"Annual change",null,null,{"$f":"+E77-D77","v":-28.378653843237515},{"$f":"+F77-E77","v":-0.84675340949345923},1.3087563348996127,1.6862045740046483,1.8321580046396946,{"$f":"+SUM(E78:I78)","v":-24.398288339187019},{"$f":"+AVERAGE(E78:I78)","v":-4.879657667837404},{"$f":"+K78/D26","v":-2.1562782447359275E-3}]

{"sheet":"Graph","index":8,"n_rows":11,"n_cols":7,"rows_kept":11,"cut":false,"hidden":true,"merged":[]}
[]
["Graph"]
["Transmission Component ($ Nominal)","2021/22","2022/23","2023/24","2024/25","2025/26","2026/27"]
["Residential (2023-27 RoR)",{"$f":"'7.6 Indicative bill'!D65","v":118.50320000000001},{"$f":"'7.6 Indicative bill'!E65","v":105.21391100072707},{"$f":"'7.6 Indicative bill'!F65","v":106.44113304547557},{"$f":"'7.6 Indicative bill'!G65","v":109.04012253942723},{"$f":"'7.6 Indicative bill'!H65","v":111.93829406484325},{"$f":"'7.6 Indicative bill'!I65","v":114.99795284847747}]
["Small Business (2023-27 RoR)",{"$f":"+'7.6 Indicative bill'!D74","v":200.72810000000001},{"$f":"+'7.6 Indicative bill'!E74","v":178.21787469659083},{"$f":"+'7.6 Indicative bill'!F74","v":180.29661982178982},{"$f":"+'7.6 Indicative bill'!G74","v":184.6989500798831},{"$f":"+'7.6 Indicative bill'!H74","v":189.60805349456606},{"$f":"+'7.6 Indicative bill'!I74","v":194.79069408391055}]
["Residential",null,{"$f":"C4-B4","v":-13.289288999272941},{"$f":"D4-C4","v":1.2272220447485012},2.5989894939516631,2.8981715254160179,3.0596587836342195]
["Small Business",null,{"$f":"C5-B5","v":-22.510225303409186},2.0787451251989921,4.4023302580932864,4.90910341468296,5.1826405893444871]
[]
["Transmission Component ($ Nominal)","2021/22","2022/23","2023/24","2024/25","2025/26","2026/27"]
["Residential (2018-22 RoR)",115.29702006588796,123.41861834880702,126.19553726165518,129.03493685004241,131.93822292916838,134.90683294507465]
["Small Business (2018-22 RoR)",195.29727276130575,209.05414170909455,213.75785989754917,218.56741174524402,223.485178509512,228.513595025976]